Workbook

Sheet Home
B3: =IF(Home!J8="",CONCATENATE(Home!G8,"'s Plan"),CONCATENATE(Home!G8, " & ",Home!J8,"'s Plan",":")) -> 's Plan
B4: Financial Life Plan:
B5: Dashboard
B6: General Planning | G6: Client | J6: Co-Client
B7: Age Based Planning
B8: Life Events Planning | F8: Name:
B9: Niche Planning
B10: Professional Circle | F10: DOB: | H10: =IF(G10="","",DATEDIF(G10,NOW(),"y")) ->  | K10: =IF(J10="","",DATEDIF(J10,NOW(),"y")) -> 
B11: GlidePath to Retirement
B12: Results | F12: Employer:
B13: Family Tree
B14: Feedback | F14: Job Title:
B15: Instructions
B16: Release Notes
D26: This data is furnished to you for informational purposes only. Although this data is derived from information which we believe to be accurate (including, in some cases information provided to us by you) we cannot guarantee its accuracy. This information is not intended and should not be used for any official tax, lending, legal, or other non-financial planning purposes and should not be relied upon by third parties.
D28: Raymond James & Associates, Inc. member New York Stock Exchange/SIPC and Raymond James Financial Services, Inc. member FINRA/SIPC

Sheet Dashboard (hidden)
A3: =IF(Home!J8="",CONCATENATE(Home!G8,"'s Plan"),CONCATENATE(Home!G8, " & ",Home!J8,"'s Plan",":")) -> 's Plan
A4: Financial Life Plan:
A5: Dashboard
A6: General Tasks
A7: Age Based Tasks
A8: Niche Tasks
A10: Results
A13: Professional Circle
A29: Display Mode | K29: Edit Mode
C31: =IF(Home!J8="",CONCATENATE("Notes for ",Home!G8,":"),CONCATENATE("Notes for ",Home!G8," & ",Home!J8,":")) -> Notes for :

Sheet Gen Tasks
A3: =Home!B3 -> 's Plan | C3: Retirement Planning | H3: Investment Planning | M3: Estate Planning*
A4: Financial Life Plan: | C4: =IF(D4="","",IF(F4>(TODAY()-(('Task Calc'!F4*365.25)*0.85)),0,IF(F4>(TODAY()-('Task Calc'!F4*365.25)),2,3))) -> 3 | D4: Goal Planning & Monitoring | F4: 2014-05-14 | H4: =IF(I4="","",IF(K4>(TODAY()-(('Task Calc'!J4*365.25)*0.85)),0,IF(K4>(TODAY()-('Task Calc'!J4*365.25)),2,3))) -> 3 | I4: Risk Tolerance Review / GPM | K4: 2015-01-06 | M4: =IF(N4="","",IF(P4>(TODAY()-(('Task Calc'!N4*365.25)*0.85)),0,IF(P4>(TODAY()-('Task Calc'!N4*365.25)),2,3))) -> 3 | N4: Trust / Will Review | P4: 2011-01-01
A5: Dashboard | C5: =IF(D5="","",IF(F5>(TODAY()-(('Task Calc'!F5*365.25)*0.85)),0,IF(F5>(TODAY()-('Task Calc'!F5*365.25)),2,3))) -> 3 | D5: Retirement Income Planning | F5: 2015-02-06 | H5: =IF(I5="","",IF(K5>(TODAY()-(('Task Calc'!J5*365.25)*0.85)),0,IF(K5>(TODAY()-('Task Calc'!J5*365.25)),2,3))) -> 3 | I5: Market / Economic Update | K5: 2014-03-01 | M5: =IF(N5="","",IF(P5>(TODAY()-(('Task Calc'!N5*365.25)*0.85)),0,IF(P5>(TODAY()-('Task Calc'!N5*365.25)),2,3))) -> 3 | N5: Medical Directives | P5: 2014-01-01
A6: General Planning | C6: =IF(D6="","",IF(F6>(TODAY()-(('Task Calc'!F6*365.25)*0.85)),0,IF(F6>(TODAY()-('Task Calc'!F6*365.25)),2,3))) -> 3 | D6: Cash Flow Planning | F6: 2015-02-06 | H6: =IF(I6="","",IF(K6>(TODAY()-(('Task Calc'!J6*365.25)*0.85)),0,IF(K6>(TODAY()-('Task Calc'!J6*365.25)),2,3))) -> 3 | I6: Asset Allocation | K6: 2015-02-09 | M6: =IF(N6="","",IF(P6>(TODAY()-(('Task Calc'!N6*365.25)*0.85)),0,IF(P6>(TODAY()-('Task Calc'!N6*365.25)),2,3))) -> 3 | N6: Estate Tax Planning | P6: 2010-01-01
A7: Age Based Planning | C7: =IF(D7="","",IF(F7>(TODAY()-(('Task Calc'!F7*365.25)*0.85)),0,IF(F7>(TODAY()-('Task Calc'!F7*365.25)),2,3))) -> 3 | D7: 401(k) / 403(b) Review | F7: 2013-04-06 | H7: =IF(I7="","",IF(K7>(TODAY()-(('Task Calc'!J7*365.25)*0.85)),0,IF(K7>(TODAY()-('Task Calc'!J7*365.25)),2,3))) -> 0 | I7: Individual Security Review | K7: na | M7: =IF(N7="","",IF(P7>(TODAY()-(('Task Calc'!N7*365.25)*0.85)),0,IF(P7>(TODAY()-('Task Calc'!N7*365.25)),2,3))) -> 3 | N7: Legacy Planning | P7: 2011-01-01
A8: Life Events Planning | C8: =IF(D8="","",IF(F8>(TODAY()-(('Task Calc'!F8*365.25)*0.85)),0,IF(F8>(TODAY()-('Task Calc'!F8*365.25)),2,3))) -> 2 | D8: Reliable Income Review | F8: 2015-02-06 | H8: =IF(I8="","",IF(K8>(TODAY()-(('Task Calc'!J8*365.25)*0.85)),0,IF(K8>(TODAY()-('Task Calc'!J8*365.25)),2,3))) -> 3 | I8: Performance Review | K8: 2015-01-06 | M8: =IF(N8="","",IF(P8>(TODAY()-(('Task Calc'!N8*365.25)*0.85)),0,IF(P8>(TODAY()-('Task Calc'!N8*365.25)),2,3))) -> 3 | N8: Charitable Planning | P8: 2010-01-01
A9: Niche Planning | C9: =IF(D9="","",IF(F9>(TODAY()-(('Task Calc'!F9*365.25)*0.85)),0,IF(F9>(TODAY()-('Task Calc'!F9*365.25)),2,3))) -> 3 | D9: Alternative Income Strategies | H9: =IF(I9="","",IF(K9>(TODAY()-(('Task Calc'!J9*365.25)*0.85)),0,IF(K9>(TODAY()-('Task Calc'!J9*365.25)),2,3))) -> 3 | I9: Outside Asset Review | K9: 2014-01-01 | M9: =IF(N9="","",IF(P9>(TODAY()-(('Task Calc'!N9*365.25)*0.85)),0,IF(P9>(TODAY()-('Task Calc'!N9*365.25)),2,3))) -> 3 | N9: Your Digital Estate | P9: 2015-02-09
A10: Professional Circle | C10: =IF(D10="","",IF(F10>(TODAY()-(('Task Calc'!F10*365.25)*0.85)),0,IF(F10>(TODAY()-('Task Calc'!F10*365.25)),2,3))) -> 0 | D10: RMD Planning | F10: na | H10: =IF(I10="","",IF(K10>(TODAY()-(('Task Calc'!J10*365.25)*0.85)),0,IF(K10>(TODAY()-('Task Calc'!J10*365.25)),2,3))) -> 3 | I10: College Planning | K10: 2012-01-01 | M10: =IF(N10="","",IF(P10>(TODAY()-(('Task Calc'!N10*365.25)*0.85)),0,IF(P10>(TODAY()-('Task Calc'!N10*365.25)),2,3))) -> 0 | N10: Planning for Parents | P10: na
A11: GlidePath to Retirement | C11: =IF(D11="","",IF(F11>(TODAY()-(('Task Calc'!F11*365.25)*0.85)),0,IF(F11>(TODAY()-('Task Calc'!F11*365.25)),2,3))) ->  | H11: =IF(I11="","",IF(K11>(TODAY()-(('Task Calc'!J11*365.25)*0.85)),0,IF(K11>(TODAY()-('Task Calc'!J11*365.25)),2,3))) -> 3 | I11: Investment Policy Statement | K11: 2012-01-01 | M11: =IF(N11="","",IF(P11>(TODAY()-(('Task Calc'!N11*365.25)*0.85)),0,IF(P11>(TODAY()-('Task Calc'!N11*365.25)),2,3))) -> 0 | N11: Power(s) of Attorney | P11: na
A12: Results | C12: =IFERROR(((COUNT(C4:C11)-COUNTIF(F4:F11,"na"))-COUNTIF(C4:C11,3))/((COUNT(C4:C11)-COUNTIF(F4:F11,"na"))),1) -> 0.1666666667 | H12: =IFERROR(((COUNT(H4:H11)-COUNTIF(K4:K11,"na"))-COUNTIF(H4:H11,3))/((COUNT(H4:H11)-COUNTIF(K4:K11,"na"))),1) -> 0 | M12: =IFERROR(((COUNT(M4:M11)-COUNTIF(P4:P11,"na"))-COUNTIF(M4:M11,3))/((COUNT(M4:M11)-COUNTIF(P4:P11,"na"))),1) -> 0
A13: Family Tree
A14: Feedback
A15: Instructions
A16: Release Notes | C16: Income Tax Planning* | D16: Tax Planning | H16: Risk Planning | I16: Tax Planning | M16: Misc. | N16: Tax Planning
C17: =IF(D17="","",IF(F17>(TODAY()-(('Task Calc'!F17*365.25)*0.85)),0,IF(F17>(TODAY()-('Task Calc'!F17*365.25)),2,3))) -> 3 | D17: Tax Harvesting | F17: 2014-11-19 | H17: =IF(I17="","",IF(K17>(TODAY()-(('Task Calc'!J17*365.25)*0.85)),0,IF(K17>(TODAY()-('Task Calc'!J17*365.25)),2,3))) -> 2 | I17: Asset Protection Strategies | K17: 2014-07-28 | M17: =IF(N17="","",IF(P17>(TODAY()-(('Task Calc'!N17*365.25)*0.85)),0,IF(P17>(TODAY()-('Task Calc'!N17*365.25)),2,3))) -> 3 | N17: Advisor Check / Feedback | P17: 2015-01-13 | Q17: 1
C18: =IF(D18="","",IF(F18>(TODAY()-(('Task Calc'!F18*365.25)*0.85)),0,IF(F18>(TODAY()-('Task Calc'!F18*365.25)),2,3))) -> 3 | D18: Pre-tax / Post-tax Strategies | F18: 2014-11-19 | H18: =IF(I18="","",IF(K18>(TODAY()-(('Task Calc'!J18*365.25)*0.85)),0,IF(K18>(TODAY()-('Task Calc'!J18*365.25)),2,3))) -> 2 | I18: Insurance Plan Review | K18: 2014-07-28 | M18: =IF(N18="","",IF(P18>(TODAY()-(('Task Calc'!N18*365.25)*0.85)),0,IF(P18>(TODAY()-('Task Calc'!N18*365.25)),2,3))) -> 0 | N18: Limited Trade Authorizations | P18: 2015-01-13 | Q18: 1
C19: =IF(D19="","",IF(F19>(TODAY()-(('Task Calc'!F19*365.25)*0.85)),0,IF(F19>(TODAY()-('Task Calc'!F19*365.25)),2,3))) -> 3 | D19: CPA Coordination | F19: 2014-11-19 | H19: =IF(I19="","",IF(K19>(TODAY()-(('Task Calc'!J19*365.25)*0.85)),0,IF(K19>(TODAY()-('Task Calc'!J19*365.25)),2,3))) -> 3 | I19: Health / Disability Plan Review | K19: 2015-02-10 | M19: =IF(N19="","",IF(P19>(TODAY()-(('Task Calc'!N19*365.25)*0.85)),0,IF(P19>(TODAY()-('Task Calc'!N19*365.25)),2,3))) -> 0 | N19: Trustee Delegation | P19: 2015-01-13 | Q19: 1
C20: =IF(D20="","",IF(F20>(TODAY()-(('Task Calc'!F20*365.25)*0.85)),0,IF(F20>(TODAY()-('Task Calc'!F20*365.25)),2,3))) -> 3 | D20: Tax Efficient Strategies | F20: 2014-11-19 | H20: =IF(I20="","",IF(K20>(TODAY()-(('Task Calc'!J20*365.25)*0.85)),0,IF(K20>(TODAY()-('Task Calc'!J20*365.25)),2,3))) -> 3 | I20: Beneficiary Review | K20: 2012-01-30 | M20: =IF(N20="","",IF(P20>(TODAY()-(('Task Calc'!N20*365.25)*0.85)),0,IF(P20>(TODAY()-('Task Calc'!N20*365.25)),2,3))) -> 3 | N20: Beneficiary Designations | Q20: 1
C21: =IF(D21="","",IF(F21>(TODAY()-(('Task Calc'!F21*365.25)*0.85)),0,IF(F21>(TODAY()-('Task Calc'!F21*365.25)),2,3))) -> 3 | D21: =CONCATENATE("Forecast income for ", YEAR(TODAY())," & ", YEAR(TODAY())+1) -> Forecast income for 2019 & 2020 | F21: 2014-11-19 | H21: =IF(I21="","",IF(K21>(TODAY()-(('Task Calc'!J21*365.25)*0.85)),0,IF(K21>(TODAY()-('Task Calc'!J21*365.25)),2,3))) -> 3 | I21: Long Term Care | K21: 2015-01-13 | M21: =IF(N21="","",IF(P21>(TODAY()-(('Task Calc'!N21*365.25)*0.85)),0,IF(P21>(TODAY()-('Task Calc'!N21*365.25)),2,3))) -> 3 | N21: Titling of Property | Q21: 1
C22: =IF(D22="","",IF(F22>(TODAY()-(('Task Calc'!F22*365.25)*0.85)),0,IF(F22>(TODAY()-('Task Calc'!F22*365.25)),2,3))) -> 3 | D22: =CONCATENATE("Forecast invest income for ", YEAR(TODAY())+1) -> Forecast invest income for 2020 | H22: =IF(I22="","",IF(K22>(TODAY()-(('Task Calc'!J22*365.25)*0.85)),0,IF(K22>(TODAY()-('Task Calc'!J22*365.25)),2,3))) -> 3 | I22: P&C Insurance Review | K22: 2015-02-10 | M22: =IF(N22="","",IF(P22>(TODAY()-(('Task Calc'!N22*365.25)*0.85)),0,IF(P22>(TODAY()-('Task Calc'!N22*365.25)),2,3))) ->  | Q22: 1
C23: =IF(D23="","",IF(F23>(TODAY()-(('Task Calc'!F23*365.25)*0.85)),0,IF(F23>(TODAY()-('Task Calc'!F23*365.25)),2,3))) -> 3 | D23: State Tax Planning | H23: =IF(I23="","",IF(K23>(TODAY()-(('Task Calc'!J23*365.25)*0.85)),0,IF(K23>(TODAY()-('Task Calc'!J23*365.25)),2,3))) -> 3 | I23: Emergency Line of Credit | M23: =IF(N23="","",IF(P23>(TODAY()-(('Task Calc'!N23*365.25)*0.85)),0,IF(P23>(TODAY()-('Task Calc'!N23*365.25)),2,3))) ->  | Q23: 1
C24: =IFERROR(((COUNT(C17:C23)-COUNTIF(F17:F23,"na"))-COUNTIF(C17:C23,3))/((COUNT(C17:C23)-COUNTIF(F17:F23,"na"))),1) -> 0 | H24: =IFERROR(((COUNT(H17:H23)-COUNTIF(K17:K23,"na"))-COUNTIF(H17:H23,3))/((COUNT(H17:H23)-COUNTIF(K17:K23,"na"))),1) -> 0.2857142857 | M24: =IFERROR(((COUNT(M17:M23)-COUNTIF(P17:P23,"na"))-COUNTIF(M17:M23,3))/((COUNT(M17:M23)-COUNTIF(P17:P23,"na"))),1) -> 0.4
C25: *You should discuss any tax or legal matters with the appropriate professional.
C26: P - Topic has been discussed in the specified time period
C27: Ó - Topic has not been discussed yet or has not been reassessed during a specified time period
C28: ! - Topic is due to be discussed or reassessed with the client but is in within a 15% threshold of specified time period. (Ex: If the defined time frame is 1 year, the exclamation point will appear 55 days prior to the next due date for topic.)

Sheet Age Tasks
A3: =Home!B3 -> 's Plan | C3: Under 30 | H3: Under 50 | M3: 50-60
A4: Financial Life Plan: | C4: =IF(D4="","",IF(F4>(TODAY()-((G4*365.25)*0.85)),0,IF(F4>(TODAY()-(G4*365.25)),2,3))) -> 0 | D4: Budget Planning - CFF | F4: na | G4: 99 | H4: =IF(I4="","",IF(K4>(TODAY()-((L4*365.25)*0.85)),0,IF(K4>(TODAY()-(L4*365.25)),2,3))) -> 0 | I4: 401k/Pension Planning | K4: 2014-01-01 | L4: 99 | M4: =IF(N4="","",IF(P4>(TODAY()-((Q4*365.25)*0.85)),0,IF(P4>(TODAY()-(Q4*365.25)),2,3))) -> 0 | N4: GlidePath to Retirement | P4: 2014-11-19 | Q4: 99 | R4: 1
A5: Dashboard | C5: =IF(D5="","",IF(F5>(TODAY()-((G5*365.25)*0.85)),0,IF(F5>(TODAY()-(G5*365.25)),2,3))) -> 0 | D5: Term Life Insurance | F5: na | G5: 99 | H5: =IF(I5="","",IF(K5>(TODAY()-((L5*365.25)*0.85)),0,IF(K5>(TODAY()-(L5*365.25)),2,3))) -> 0 | I5: First Goal Planning & Monitor | K5: 2014-01-01 | L5: 99 | M5: =IF(N5="","",IF(P5>(TODAY()-((Q5*365.25)*0.85)),0,IF(P5>(TODAY()-(Q5*365.25)),2,3))) -> 0 | N5: 50 - 401(k) and IRA Catchup | P5: 2014-11-19 | Q5: 99 | R5: 1
A6: General Planning | C6: 0 | D6: Student Debt | F6: na | G6: 99 | H6: 0 | I6: Children's Financial Goals | K6: 2014-01-01 | L6: 99 | M6: 0 | N6: Risk Planning Review | P6: 2014-11-19 | Q6: 99 | R6: 1
A7: Age Based Planning | C7: 0 | D7: Planning for Marriage | F7: na | G7: 99 | H7: 0 | I7: Budgeting - CFF | K7: 2014-01-01 | L7: 99 | M7: 3 | N7: 55 - SFS 401(k) Withdrawals | Q7: 99 | R7: 1
A8: Life Events Planning | C8: 0 | D8: Planning for Children | F8: na | G8: 99 | H8: 0 | I8: Home / Mortgage Planning | K8: 2014-01-01 | L8: 99 | M8: 3 | N8: 59.5 - IRA Withdrawal | Q8: 99 | R8: 1
A9: Niche Planning | C9: 0 | D9: Buying First Home | F9: na | G9: 99 | H9: 0 | I9: Employer Benefits Review | K9: 2014-01-01 | L9: 99 | M9: 3 | N9: Long Term Care Plan | Q9: 99 | R9: 1
A10: Professional Circle | C10: 0 | D10: 529 Planning | F10: na | G10: 99 | H10: 0 | I10: Life Insurance / Risk Review | K10: 2014-01-01 | L10: 99 | M10: 3 | N10: Planning for Parents | Q10: 99 | R10: 1
A11: GlidePath to Retirement | C11: 0 | D11: Employer Benefits Review | F11: na | G11: 99 | H11: 0 | I11: Leverage / Debt Strategy | K11: na | L11: 99 | M11: 3 | N11: Planning for Grandchildren | Q11: 99 | R11: 1
A12: Results | C12: =((COUNT(C4:C11)-COUNTIF(C4:C11,3))/(COUNT(C4:C11))) -> 1 | H12: =((COUNT(H4:H11)-COUNTIF(H4:H11,3))/(COUNT(H4:H11))) -> 1 | M12: =((COUNT(M4:M11)-COUNTIF(M4:M11,3))/(COUNT(M4:M11))) -> 0.375
A13: Family Tree | I13: =Home!G8 -> 0 | K13: =Home!H10 -> 
A14: Feedback | I14: =Home!J8 -> 0 | K14: =Home!K10 -> 
A15: Instructions
A16: Release Notes | C16: 60 - 65 | D16: Tax Planning | H16: 66-75 | I16: Tax Planning | N16: 76 - OVER
C17: =IF(D17="","",IF(F17>(TODAY()-((G17*365.25)*0.85)),0,IF(F17>(TODAY()-(G17*365.25)),2,3))) -> 3 | D17: 61-Social Security Optimization | G17: 99 | H17: =IF(I17="","",IF(K17>(TODAY()-((L17*365.25)*0.85)),0,IF(K17>(TODAY()-(L17*365.25)),2,3))) -> 3 | I17: 70 - RMD Planning | L17: 99 | M17: =IF(N17="","",IF(P17>(TODAY()-((Q17*365.25)*0.85)),0,IF(P17>(TODAY()-(Q17*365.25)),2,3))) -> 3 | N17: Longevity Planning | Q17: 99 | R17: 1
C18: 3 | D18: GlidePath to Retirement | G18: 99 | H18: 3 | I18: Age-Proof Planning | L18: 99 | M18: 3 | N18: Generational Transfers | Q18: 99 | R18: 1
C19: 3 | D19: 65 - Medicare Eligibility | G19: 99 | H19: 3 | I19: Long Term Care Planning | L19: 99 | M19: 3 | N19: Charitable Legacy | Q19: 99 | R19: 1
C20: 3 | D20: Long Term Care Planning | G20: 99 | H20: 3 | I20: Planning for Grandchildren | L20: 99 | M20: 3 | N20: Age-Proof Planning | Q20: 99 | R20: 1
C21: 3 | D21: Planning for Grandchildren | G21: 99 | L21: 99 | M21: 3 | N21: Long Term Care Planning | Q21: 99 | R21: 1
G22: 99 | L22: 99 | Q22: 99 | R22: 1
G23: 99 | L23: 99 | Q23: 99 | R23: 1
C24: =((COUNT(C16:C23)-COUNTIF(C16:C23,3))/(COUNT(C16:C23))) -> 0 | H24: =((COUNT(H16:H23)-COUNTIF(H16:H23,3))/(COUNT(H16:H23))) -> 0

Sheet LifeEvents
E2: Life Events Planning
A3: =Home!B3 -> 's Plan
A4: Financial Life Plan: | N4: 99
A5: Dashboard
A6: General Planning | N6: 99
A7: Age Based Planning | N7: 99
A8: Life Events Planning | N8: 99
A9: Niche Planning | N9: 99
A10: Professional Circle | N10: 99
A11: GlidePath to Retirement | N11: 99
A12: Results | N12: 99
A13: Family Tree | N13: 99
A14: Feedback
A15: Instructions
A16: Release Notes
D24: *Links are being provided for information purposes only. Raymond James is not affiliated with and does not endorse, authorize or sponsor any of the listed websites or their respective sponsors. Raymond James is not responsible for the content of any website or the collection or use of information regarding any website's users and/or members.

Sheet Niche Landing
A3: =Home!B3 -> 's Plan
A4: Financial Life Plan:
A5: Dashboard
A6: General Planning
A7: Age Based Planning
A8: Life Events Planning
A9: Niche Planning
A10: Professional Circle
A11: GlidePath to Retirement
A12: Results
A13: Family Tree
A14: Feedback
A15: Instructions
A16: Release Notes

Sheet WealthCare
E2: Physician Planning
A3: =Home!B3 -> 's Plan
A4: Financial Life Plan: | N4: 99
A5: Dashboard | C5: Early Years | G5: Late Stage | K5: Succession Planning
A6: General Planning | C6: =IF(D6="","",IF(E6>(TODAY()-((F6*365.25)*0.85)),0,IF(E6>(TODAY()-(F6*365.25)),2,3))) -> 3 | D6: Medical School Debt | F6: 1 | G6: =IF(H6="","",IF(I6>(TODAY()-((J6*365.25)*0.85)),0,IF(I6>(TODAY()-(J6*365.25)),2,3))) ->  | J6: 99 | K6: =IF(L6="","",IF(M6>(TODAY()-((N6*365.25)*0.85)),0,IF(M6>(TODAY()-(N6*365.25)),2,3))) -> 3 | L6: Business Management | N6: 99
A7: Age Based Planning | C7: =IF(D7="","",IF(E7>(TODAY()-((F7*365.25)*0.85)),0,IF(E7>(TODAY()-(F7*365.25)),2,3))) -> 3 | D7: First House | F7: 99 | G7: =IF(H7="","",IF(I7>(TODAY()-((J7*365.25)*0.85)),0,IF(I7>(TODAY()-(J7*365.25)),2,3))) ->  | J7: 99 | K7: =IF(L7="","",IF(M7>(TODAY()-((N7*365.25)*0.85)),0,IF(M7>(TODAY()-(N7*365.25)),2,3))) -> 3 | L7: Exit Strategey | N7: 99
A8: Life Events Planning | C8: 3 | D8: Dependent College / School | F8: 99 | J8: 99 | K8: 3 | L8: Patient Care | N8: 99
A9: Niche Planning | C9: 3 | D9: Asset Protection | F9: 99 | J9: 99 | K9: 3 | L9: Employee Benefits | N9: 99
A10: Professional Circle | C10: 3 | D10: Debt Mgmt | F10: 99 | J10: 99 | K10: 3 | L10: Business Taxation | N10: 99
A11: GlidePath to Retirement | C11: 3 | D11: Cash Flow Mgmt | F11: 99 | J11: 99 | K11: 3 | L11: Insurance Planning | N11: 99
A12: Results | C12: 3 | D12: Buy Sell Agreements | F12: 99 | J12: 99 | K12: 3 | L12: Employee Contracts | N12: 99
A13: Family Tree | F13: 99 | J13: 99 | K13: 3 | L13: Tail Insurance | N13: 99
A14: Feedback | F14: 99 | J14: 99 | N14: 100
A15: Instructions | F15: 99 | J15: 99 | N15: 101
A16: Release Notes

Sheet FamilyINC
E2: Small Business Planning
A3: =Home!B3 -> 's Plan
A4: Financial Life Plan: | N4: 99
A5: Dashboard | C5: Personal Planning | G5: Business Planning | K5: Succession / Transition Planning
A6: General Planning | C6: =IF(D6="","",IF(E6>(TODAY()-((F6*365.25)*0.85)),0,IF(E6>(TODAY()-(F6*365.25)),2,3))) -> 3 | D6: Buy Sell Agreementrs | F6: 99 | G6: =IF(H6="","",IF(I6>(TODAY()-((J6*365.25)*0.85)),0,IF(I6>(TODAY()-(J6*365.25)),2,3))) -> 3 | H6: Financial Planning Overview | J6: 99 | K6: =IF(L6="","",IF(M6>(TODAY()-((N6*365.25)*0.85)),0,IF(M6>(TODAY()-(N6*365.25)),2,3))) -> 3 | L6: Family or Outside buyer | N6: 99
A7: Age Based Planning | C7: =IF(D7="","",IF(E7>(TODAY()-((F7*365.25)*0.85)),0,IF(E7>(TODAY()-(F7*365.25)),2,3))) -> 3 | D7: Executive Benefits | F7: 99 | G7: =IF(H7="","",IF(I7>(TODAY()-((J7*365.25)*0.85)),0,IF(I7>(TODAY()-(J7*365.25)),2,3))) -> 3 | H7: Tax Planning | J7: 99 | K7: =IF(L7="","",IF(M7>(TODAY()-((N7*365.25)*0.85)),0,IF(M7>(TODAY()-(N7*365.25)),2,3))) -> 3 | L7: Cash Flow or Asset Buyout | N7: 99
A8: Life Events Planning | C8: 3 | D8: Retirement Target Date | F8: 99 | G8: 3 | H8: Real Estate Plan | J8: 99 | K8: 3 | L8: Pre-Transition Planning | N8: 99
A9: Niche Planning | C9: 3 | D9: Distribution vs Salary Planning | F9: 99 | G9: 3 | H9: Qualified Retirement Plan | J9: 99 | K9: 3 | L9: Business Valuation | N9: 99
A10: Professional Circle | C10: 3 | D10: Disability | F10: 99 | G10: 3 | H10: Benefits Package | J10: 99 | K10: 3 | L10: IB Introduction | N10: 99
A11: GlidePath to Retirement | F11: 99 | G11: 3 | H11: Risk Planning | J11: 99 | K11: 3 | L11: Divesture | N11: 99
A12: Results | F12: 99 | G12: 3 | H12: Investment Planning | J12: 99 | K12: 3 | L12: Sellability Score | N12: 99
A13: Family Tree | F13: 99 | G13: 3 | H13: Cash flow Management | J13: 99 | K13: 3 | L13: Estate Imbalance | N13: 99
A14: Feedback | F14: 99 | G14: 3 | H14: Golden Handcuffs | J14: 99
A15: Instructions | F15: 99 | G15: 3 | H15: Production Financing | J15: 99
A16: Release Notes | F16: 99 | G16: 3 | H16: Venture Capital | J16: 99
F17: 99 | G17: 3 | H17: Business Valuation | J17: 99
F18: 99 | J18: 99
F19: 99 | J19: 99
F20: 99 | J20: 99

Sheet Executive
E2: Executive Planning
A3: =Home!B3 -> 's Plan
A4: Financial Life Plan: | N4: 99
A5: Dashboard | C5: Executive Retirement Plans | G5: Concentration Review | K5: Succession Planning
A6: General Planning | C6: =IF(D6="","",IF(E6>(TODAY()-((F6*365.25)*0.85)),0,IF(E6>(TODAY()-(F6*365.25)),2,3))) -> 3 | D6: Deferred Compensation Review | F6: 99 | G6: =IF(H6="","",IF(I6>(TODAY()-((J6*365.25)*0.85)),0,IF(I6>(TODAY()-(J6*365.25)),2,3))) -> 3 | H6: Restricted Stock | J6: 99 | K6: =IF(L6="","",IF(M6>(TODAY()-((N6*365.25)*0.85)),0,IF(M6>(TODAY()-(N6*365.25)),2,3))) ->  | N6: 99
A7: Age Based Planning | C7: =IF(D7="","",IF(E7>(TODAY()-((F7*365.25)*0.85)),0,IF(E7>(TODAY()-(F7*365.25)),2,3))) -> 3 | D7: SERP | F7: 99 | G7: =IF(H7="","",IF(I7>(TODAY()-((J7*365.25)*0.85)),0,IF(I7>(TODAY()-(J7*365.25)),2,3))) -> 3 | H7: Stock Options Review | J7: 99 | K7: =IF(L7="","",IF(M7>(TODAY()-((N7*365.25)*0.85)),0,IF(M7>(TODAY()-(N7*365.25)),2,3))) ->  | N7: 99
A8: Life Events Planning | C8: 3 | D8: Top Hat | F8: 99 | G8: 3 | H8: Section 83(b) election | J8: 99 | N8: 99
A9: Niche Planning | C9: 3 | D9: Golden Handcuff Review | F9: 99 | G9: 3 | H9: Hedging Strategy's | J9: 99 | N9: 99
A10: Professional Circle | C10: 3 | D10: Exec Benefit Carve Out | F10: 99 | G10: 3 | H10: Cashless Option Strategy | J10: 99 | N10: 99
A11: GlidePath to Retirement | F11: 99 | J11: 99 | N11: 99
A12: Results | F12: 99 | J12: 99 | N12: 99
A13: Family Tree | F13: 99 | J13: 99 | N13: 99
A14: Feedback | F14: 99 | J14: 99
A15: Instructions | F15: 99 | J15: 99
A16: Release Notes | F16: 99 | J16: 99

Sheet SpecialNeeds
E2: Special Needs Planning
A3: =Home!B3 -> 's Plan
A4: Financial Life Plan: | N4: 99
A5: Dashboard | C5: Special Needs Trust | G5: Other Planning
A6: General Planning | C6: =IF(D6="","",IF(E6>(TODAY()-((F6*365.25)*0.85)),0,IF(E6>(TODAY()-(F6*365.25)),2,3))) -> 3 | D6: Third-Party Trust | F6: 99 | G6: =IF(H6="","",IF(I6>(TODAY()-((J6*365.25)*0.85)),0,IF(I6>(TODAY()-(J6*365.25)),2,3))) -> 3 | H6: Beneficiary Designations | J6: 99 | N6: 99
A7: Age Based Planning | C7: =IF(D7="","",IF(E7>(TODAY()-((F7*365.25)*0.85)),0,IF(E7>(TODAY()-(F7*365.25)),2,3))) -> 3 | D7: Qualified Self-Funded Trust | F7: 99 | G7: =IF(H7="","",IF(I7>(TODAY()-((J7*365.25)*0.85)),0,IF(I7>(TODAY()-(J7*365.25)),2,3))) -> 3 | H7: Guardianship Issues | J7: 99 | N7: 99
A8: Life Events Planning | C8: 3 | D8: Qualified Pooled Trust | F8: 99 | J8: 99 | N8: 99
A9: Niche Planning | C9: 3 | D9: Draft Special Needs Trust | F9: 99 | J9: 99 | N9: 99
A10: Professional Circle | C10: 3 | D10: Trust Funding Strategy | F10: 99 | J10: 99 | N10: 99
A11: GlidePath to Retirement | C11: 3 | D11: Select Trustee / Corp Trustee | F11: 99 | J11: 99 | N11: 99
A12: Results | C12: 3 | D12: Letter of Intent | F12: 99 | J12: 99 | N12: 99
A13: Family Tree | C13: 3 | D13: Inform Family Members | F13: 99 | J13: 99 | N13: 99
A14: Feedback | F14: 99 | J14: 99
A15: Instructions | F15: 99 | J15: 99
A16: Release Notes | F16: 99 | J16: 99
F17: 99 | J17: 99
F18: 99 | J18: 99
F19: 99 | J19: 99
F20: 99 | J20: 99

Sheet Divorcee
E2: Divorcee Planning
A3: =Home!B3 -> 's Plan
A4: Financial Life Plan: | N4: 99
A5: Dashboard | C5: Financial Planning | G5: Other Planning
A6: General Planning | C6: =IF(D6="","",IF(E6>(TODAY()-((F6*365.25)*0.85)),0,IF(E6>(TODAY()-(F6*365.25)),2,3))) -> 3 | D6: Assess Spouse Income | F6: 99 | G6: =IF(H6="","",IF(I6>(TODAY()-((J6*365.25)*0.85)),0,IF(I6>(TODAY()-(J6*365.25)),2,3))) -> 3 | H6: Update Wills and Trusts | J6: 99 | N6: 99
A7: Age Based Planning | C7: =IF(D7="","",IF(E7>(TODAY()-((F7*365.25)*0.85)),0,IF(E7>(TODAY()-(F7*365.25)),2,3))) -> 3 | D7: Expenses Update | F7: 99 | G7: =IF(H7="","",IF(I7>(TODAY()-((J7*365.25)*0.85)),0,IF(I7>(TODAY()-(J7*365.25)),2,3))) -> 3 | H7: Update Ben | J7: 99 | N7: 99
A8: Life Events Planning | C8: 3 | D8: Asset / Liabilities Update | F8: 99 | G8: =IF(H8="","",IF(I8>(TODAY()-((J8*365.25)*0.85)),0,IF(I8>(TODAY()-(J8*365.25)),2,3))) -> 3 | H8: Health Insurance Review | J8: 99 | N8: 99
A9: Niche Planning | C9: 3 | D9: Employee Bene Entitlements | F9: 99 | G9: 3 | H9: Children Health Plan | J9: 99 | N9: 99
A10: Professional Circle | C10: 3 | D10: Community Property State? | F10: 99 | G10: 3 | H10: Credit Repair / Establishment | J10: 99 | N10: 99
A11: GlidePath to Retirement | C11: 3 | D11: Cost Basis on Home Updated | F11: 99 | G11: 3 | H11: Beneficiary Designations | J11: 99 | N11: 99
A12: Results | C12: 3 | D12: Tax Considerations Child Support | F12: 99 | G12: 3 | H12: Guardianship Issues | J12: 99 | N12: 99
A13: Family Tree | C13: 3 | D13: Tax Considerations Allimony | F13: 99 | G13: 3 | H13: Asset Protection | J13: 99 | N13: 99
A14: Feedback | C14: 3 | D14: QDRO | F14: 99 | G14: 3 | H14: Family Business Valuation | J14: 99
A15: Instructions | C15: 3 | D15: File Tax Joint or Separate | F15: 99 | J15: 99
A16: Release Notes | C16: 3 | D16: Which Spouse Dependent Exemp | F16: 99 | J16: 99
C17: 3 | D17: Add Life Insurance on Spouse | F17: 99 | G17: =IF(H17="","",IF(I17>(TODAY()-((J17*365.25)*0.85)),0,IF(I17>(TODAY()-(J17*365.25)),2,3))) ->  | J17: 99
C18: 3 | D18: Social Security Benefits Review | F18: 99 | G18: =IF(H18="","",IF(I18>(TODAY()-((J18*365.25)*0.85)),0,IF(I18>(TODAY()-(J18*365.25)),2,3))) ->  | J18: 99
C19: 3 | D19: Re-evaluate Financial Plan | F19: 99 | J19: 99
F20: 99 | J20: 99

Sheet NonProfit
E2: Non - Profit Planning
A3: =Home!B3 -> 's Plan
A4: Financial Life Plan: | N4: 99
A5: Dashboard | C5: Asset Management | G5: Other Planning
A6: General Planning | C6: =IF(D6="","",IF(E6>(TODAY()-((F6*365.25)*0.85)),0,IF(E6>(TODAY()-(F6*365.25)),2,3))) -> 3 | D6: Request for Proposal | F6: 99 | G6: =IF(H6="","",IF(I6>(TODAY()-((J6*365.25)*0.85)),0,IF(I6>(TODAY()-(J6*365.25)),2,3))) ->  | J6: 99 | N6: 99
A7: Age Based Planning | C7: =IF(D7="","",IF(E7>(TODAY()-((F7*365.25)*0.85)),0,IF(E7>(TODAY()-(F7*365.25)),2,3))) ->  | F7: 99 | G7: =IF(H7="","",IF(I7>(TODAY()-((J7*365.25)*0.85)),0,IF(I7>(TODAY()-(J7*365.25)),2,3))) ->  | J7: 99 | N7: 99
A8: Life Events Planning | F8: 99 | J8: 99 | N8: 99
A9: Niche Planning | F9: 99 | J9: 99 | N9: 99
A10: Professional Circle | F10: 99 | J10: 99 | N10: 99
A11: GlidePath to Retirement | F11: 99 | J11: 99 | N11: 99
A12: Results | F12: 99 | J12: 99 | N12: 99
A13: Family Tree | F13: 99 | J13: 99 | N13: 99
A14: Feedback | F14: 99 | J14: 99
A15: Instructions | F15: 99 | J15: 99
A16: Release Notes | F16: 99 | J16: 99
F17: 99 | J17: 99
F18: 99 | J18: 99
F19: 99 | J19: 99
F20: 99 | J20: 99

Sheet Results
A3: =Home!B3 -> 's Plan
A4: Financial Life Plan:
A5: Dashboard | D5: Overall Completion
A6: General Planning
A7: Age Based Planning
A8: Life Events Planning
A9: Niche Planning
A10: Professional Circle
A11: GlidePath to Retirement
A12: Results
A13: Family Tree
A14: Feedback
A15: Instructions
A16: Release Notes

Sheet Prof Circle
A3: =Home!B3 -> 's Plan
A4: Financial Life Plan: | I4: Estate Attorney
A5: Dashboard | I5: Name:
A6: General Planning | F6: Attorney | I6: Firm: | L6: Other
A7: Age Based Planning | F7: Name: | I7: Phone: | L7: Name:
A8: Life Events Planning | F8: Firm: | I8: Email: | L8: Firm:
A9: Niche Planning | F9: Phone: | I9: Address: | L9: Phone:
A10: Professional Circle | F10: Email: | L10: Email:
A11: GlidePath to Retirement | F11: Address: | J11: Authorize Collaboration | L11: Address:
A12: Results | C12: CPA | O12: Other
A13: Family Tree | C13: Name: | G13: Authorize Collaboration | M13: Authorize Collaboration | O13: Name:
A14: Feedback | C14: Firm: | O14: Firm:
A15: Instructions | C15: Phone: | O15: Phone:
A16: Release Notes | C16: Email: | O16: Email:
C17: Address: | O17: Address:
D19: Authorize Collaboration | P19: Authorize Collaboration

Sheet ssestimator
E2: Social Security Estimator
A3: =Home!B3 -> 's Plan
A4: Financial Life Plan: | N4: 99
A5: Dashboard
A6: General Planning
A7: Age Based Planning
A8: Life Events Planning
A9: Niche Planning
A10: Professional Circle | N10: SS Gather Worksheet
A11: GlidePath to Retirement
A12: Results
A13: Family Tree
A14: Feedback
A15: Instructions
A16: Release Notes

Sheet Results Calc
B2: Retirement Planning | H2: Investment Planning | N2: Estate Planning
D3: =COUNTIF('Gen Tasks'!C$4:C$11,0)-(COUNTIF('Gen Tasks'!F4:F11,"na")) -> 0 | E3: Green | F3: =(((D3+D4)/D6)*0.75)*100 -> 12.5 | J3: =COUNTIF('Gen Tasks'!H4:H11,0)-(COUNTIF('Gen Tasks'!K4:K11,"na")) -> 0 | K3: Green | L3: =(((J3+J4)/J6)*0.75)*100 -> 0 | P3: =COUNTIF('Gen Tasks'!M4:M11,0)-(COUNTIF('Gen Tasks'!P4:P11,"na")) -> 0 | Q3: Green | R3: =(((P3+P4)/P6)*0.75)*100 -> 0 | V3: na
D4: =COUNTIF('Gen Tasks'!C$4:C$11,2) -> 1 | E4: Yellow | F4: 0 | J4: =COUNTIF('Gen Tasks'!H4:H11,2) -> 0 | K4: Yellow | L4: 0 | P4: =COUNTIF('Gen Tasks'!M4:M11,2) -> 0 | Q4: Yellow | R4: 0 | V4: =TODAY() -> 2019-07-08
D5: =COUNTIF('Gen Tasks'!C$4:C$11,3) -> 5 | E5: Red | F5: =((D5/D$6)*0.75)*100 -> 62.5 | J5: =COUNTIF('Gen Tasks'!H4:H11,3) -> 7 | K5: Red | L5: =((J5/J$6)*0.75)*100 -> 75 | P5: =COUNTIF('Gen Tasks'!M4:M11,3) -> 6 | Q5: Red | R5: =((P5/P$6)*0.75)*100 -> 75
D6: =COUNT('Gen Tasks'!C4:C11)-(COUNTIF('Gen Tasks'!F4:F11,"na")) -> 6 | E6: white | F6: 25 | J6: =COUNT('Gen Tasks'!H4:H11)-(COUNTIF('Gen Tasks'!K4:K11,"na")) -> 7 | K6: white | L6: 25 | P6: =COUNT('Gen Tasks'!M4:M11)-(COUNTIF('Gen Tasks'!P4:P11,"na")) -> 6 | Q6: white | R6: 25
F7: =SUM(F3:F6) -> 100 | L7: =SUM(L3:L6) -> 100 | R7: =SUM(R3:R6) -> 100
F8: =SUM(F3:F5) -> 75 | L8: =SUM(L3:L5) -> 75 | R8: =SUM(R3:R5) -> 75
F9: =SUM(F3:F4) -> 12.5 | L9: =SUM(L3:L4) -> 0 | R9: =SUM(R3:R4) -> 0
F10: =F9/F8 -> 0.1666666667 | L10: =L9/L8 -> 0 | R10: =R9/R8 -> 0
B13: Tax Planning | H13: Risk Planning | N13: Composite
D14: =COUNTIF('Gen Tasks'!C$17:C$23,0)-(COUNTIF('Gen Tasks'!F17:F23,"na")) -> 0 | E14: Green | F14: =(((D14+D15)/D17)*0.75)*100 -> 0 | J14: =COUNTIF('Gen Tasks'!H17:H23,0)-(COUNTIF('Gen Tasks'!K17:K23,"na")) -> 0 | K14: Green | L14: =(((J14+J15)/J17)*0.75)*100 -> 21.42857143 | N14: Ranges | P14: =SUM(J14,D14,D3,J3,P3) -> 0 | Q14: Green | R14: =(((P14+P15)/P17)*0.75)*100 -> 6.818181818
D15: =COUNTIF('Gen Tasks'!C$17:C$23,2) -> 0 | E15: Yellow | F15: 0 | J15: =COUNTIF('Gen Tasks'!H17:H23,2) -> 2 | K15: Yellow | L15: 0 | N15: Start | O15: 0 | P15: =SUM(J15,D15,D4,J4,P4) -> 3 | Q15: Yellow | R15: 0
D16: =COUNTIF('Gen Tasks'!C$17:C$23,3) -> 7 | E16: Red | F16: =((D16/D$17)*0.75)*100 -> 75 | J16: =COUNTIF('Gen Tasks'!H17:H23,3) -> 5 | K16: Red | L16: =((J16/J17)*0.75)*100 -> 53.57142857 | N16: Red | O16: 0 | P16: =SUM(J16,D16,D5,J5,P5) -> 30 | Q16: Red | R16: =((P16/P17)*0.75)*100 -> 68.18181818
D17: =COUNT('Gen Tasks'!C17:C23)-(COUNTIF('Gen Tasks'!F17:F23,"na")) -> 7 | E17: white | F17: 25 | J17: =COUNT('Gen Tasks'!H17:H23)-(COUNTIF('Gen Tasks'!K17:K23,"na")) -> 7 | K17: white | L17: 25 | N17: Yellow | O17: 60 | P17: =SUM(J17,D17,D6,J6,P6) -> 33 | Q17: white | R17: 25
F18: =SUM(F14:F17) -> 100 | L18: =SUM(L14:L17) -> 100 | N18: Green | O18: 30 | R18: =SUM(R14:R17) -> 100
F19: =SUM(F14:F16) -> 75 | L19: =SUM(L14:L16) -> 75 | N19: Blue | O19: 10 | R19: =SUM(R14:R16) -> 75
F20: =SUM(F14:F15) -> 0 | L20: =SUM(L14:L15) -> 21.42857143 | N20: End | O20: 100 | R20: =SUM(R14:R15) -> 6.818181818
F21: =F20/F19 -> 0 | L21: =L20/L19 -> 0.2857142857 | R21: =R20/R19 -> 0.09090909091
C26: Composite | J26: Retirement | Q26: Investment
C27: Value | D27: Degs | F27: x | G27: y | J27: Value | K27: Degs | M27: x | N27: y | Q27: Value | R27: Degs | T27: x | U27: y
B28: Min | C28: 0 | D28: 0 | F28: =50-(50*COS(RADIANS(D30))) -> 4.897605974 | G28: =50*SIN(RADIANS(D30)) -> 21.58179912 | I28: Min | J28: 0 | K28: 0 | M28: =50-(50*COS(RADIANS(K30))) -> 6.698729811 | N28: =50*SIN(RADIANS(K30)) -> 25 | P28: Min | Q28: 0 | R28: 0 | T28: =50-(50*COS(RADIANS(R30))) -> 0 | U28: =50*SIN(RADIANS(R30)) -> 0
B29: Max | C29: 100 | D29: 180 | F29: =50-(2*COS(RADIANS(D30+90))) -> 50.86327196 | G29: =2*SIN(RADIANS(D30+90)) -> 1.804095761 | I29: Max | J29: 100 | K29: 180 | M29: =50-(2*COS(RADIANS(K30+90))) -> 51 | N29: =2*SIN(RADIANS(K30+90)) -> 1.732050808 | P29: Max | Q29: 100 | R29: 180 | T29: =50-(2*COS(RADIANS(R30+90))) -> 50 | U29: =2*SIN(RADIANS(R30+90)) -> 2
B30: Actual | C30: =((SUM('Gen Tasks'!C12,'Gen Tasks'!H12,'Gen Tasks'!M12,'Gen Tasks'!H24,'Gen Tasks'!C24,'Gen Tasks'!M24))/6)*100 -> 14.20634921 | D30: =((C30-C28)/(C29-C28))*180 -> 25.57142857 | F30: =50-(2*COS(RADIANS(D30-90))) -> 49.13672804 | G30: =2*SIN(RADIANS(D30-90)) -> -1.804095761 | I30: Actual | J30: =('Gen Tasks'!C12)*100 -> 16.66666667 | K30: =((J30-J28)/(J29-J28))*180 -> 30 | M30: =50-(2*COS(RADIANS(K30-90))) -> 49 | N30: =2*SIN(RADIANS(K30-90)) -> -1.732050808 | P30: Actual | Q30: =('Gen Tasks'!H12)*100 -> 0 | R30: =((Q30-Q28)/(Q29-Q28))*180 -> 0 | T30: =50-(2*COS(RADIANS(R30-90))) -> 50 | U30: =2*SIN(RADIANS(R30-90)) -> -2
B31: Scale1 | C31: 20 | F31: =F28 -> 4.897605974 | G31: =G28 -> 21.58179912 | I31: Scale1 | J31: 20 | M31: =M28 -> 6.698729811 | N31: =N28 -> 25 | P31: Scale1 | Q31: 20 | T31: =T28 -> 0 | U31: =U28 -> 0
B32: Scale2 | C32: 40 | F32: 50 | G32: 0 | I32: Scale2 | J32: 40 | M32: 50 | N32: 0 | P32: Scale2 | Q32: 40 | T32: 50 | U32: 0
B33: Scale3 | C33: 60 | I33: Scale3 | J33: 60 | P33: Scale3 | Q33: 60
B34: Scale4 | C34: 80 | I34: Scale4 | J34: 80 | P34: Scale4 | Q34: 80
C36: Estate | J36: Tax | Q36: Risk
C37: Value | D37: Degs | F37: x | G37: y | J37: Value | K37: Degs | M37: x | N37: y | Q37: Value | R37: Degs | T37: x | U37: y
B38: Min | C38: 0 | D38: 0 | F38: =50-(50*COS(RADIANS(D40))) -> 0 | G38: =50*SIN(RADIANS(D40)) -> 0 | I38: Min | J38: 0 | K38: 0 | M38: =50-(50*COS(RADIANS(K40))) -> 0 | N38: =50*SIN(RADIANS(K40)) -> 0 | P38: Min | Q38: 0 | R38: 0 | T38: =50-(50*COS(RADIANS(R40))) -> 18.82550991 | U38: =50*SIN(RADIANS(R40)) -> 39.09157412
B39: Max | C39: 100 | D39: 180 | F39: =50-(2*COS(RADIANS(D40+90))) -> 50 | G39: =2*SIN(RADIANS(D40+90)) -> 2 | I39: Max | J39: 100 | K39: 180 | M39: =50-(2*COS(RADIANS(K40+90))) -> 50 | N39: =2*SIN(RADIANS(K40+90)) -> 2 | P39: Max | Q39: 100 | R39: 180 | T39: =50-(2*COS(RADIANS(R40+90))) -> 51.56366296 | U39: =2*SIN(RADIANS(R40+90)) -> 1.246979604
B40: Actual | C40: =('Gen Tasks'!M12)*100 -> 0 | D40: =((C40-C38)/(C39-C38))*180 -> 0 | F40: =50-(2*COS(RADIANS(D40-90))) -> 50 | G40: =2*SIN(RADIANS(D40-90)) -> -2 | I40: Actual | J40: =('Gen Tasks'!C24)*100 -> 0 | K40: =((J40-J38)/(J39-J38))*180 -> 0 | M40: =50-(2*COS(RADIANS(K40-90))) -> 50 | N40: =2*SIN(RADIANS(K40-90)) -> -2 | P40: Actual | Q40: =('Gen Tasks'!H24)*100 -> 28.57142857 | R40: =((Q40-Q38)/(Q39-Q38))*180 -> 51.42857143 | T40: =50-(2*COS(RADIANS(R40-90))) -> 48.43633704 | U40: =2*SIN(RADIANS(R40-90)) -> -1.246979604
B41: Scale1 | C41: 20 | F41: =F38 -> 0 | G41: =G38 -> 0 | I41: Scale1 | J41: 20 | M41: =M38 -> 0 | N41: =N38 -> 0 | P41: Scale1 | Q41: 20 | T41: =T38 -> 18.82550991 | U41: =U38 -> 39.09157412
B42: Scale2 | C42: 40 | F42: 50 | G42: 0 | I42: Scale2 | J42: 40 | M42: 50 | N42: 0 | P42: Scale2 | Q42: 40 | T42: 50 | U42: 0
B43: Scale3 | C43: 60 | I43: Scale3 | J43: 60 | P43: Scale3 | Q43: 60
B44: Scale4 | C44: 80 | I44: Scale4 | J44: 80 | P44: Scale4 | Q44: 80
C50: R) Radar Widget Calculations
C52: Step #1: Link the YELLOW cells to your widget configuration data following this example
E53: Item | F53: Value
C54: =J26 -> Retirement | E54: 1 | F54: =J30 -> 16.66666667 | G54: Main Title | H54: Completion Matrix
C55: =Q26 -> Investment | E55: 2 | F55: =Q30 -> 0
C56: =C36 -> Estate | E56: 3 | F56: =C40 -> 0
C57: =J36 -> Tax | E57: 4 | F57: =J40 -> 0
C58: =Q36 -> Risk | E58: 5 | F58: =Q40 -> 28.57142857
C63: Step #2: On the dashboard page, go to (HOME>FIND&SELECT>SELECTION PANE) to link individual widget components to BLUE cells following this example.
C65: =C54 -> Retirement | E65: =F54 -> 16.66666667 | G65: Main Title | H65: =H54 -> Completion Matrix
C66: =C55 -> Investment | E66: =F55 -> 0
C67: Estate | E67: 0
C68: Tax | E68: 0
C69: Risk | E69: 28.57142857
C70: 0 | E70: 0
C71: 0 | E71: 0
C72: 0 | E72: 0
C74: Step #3: On the dashboard page, go to (HOME>FIND&SELECT>SELECTION PANE) to link the radar chart to PINK cells following this example.
D76: 1 | E76: 1 | F76: 2 | G76: 2 | H76: 3 | I76: 3 | J76: 4 | K76: 4 | L76: 5 | M76: 5 | N76: 6 | O76: 6 | P76: 7 | Q76: 7 | R76: 8 | S76: 8
C77: 1 | D77: =IF(VLOOKUP(D76,E54:F61,2,FALSE)>=C77,10,0) -> 10 | E77: =IF(D77=10,0,10) -> 0 | F77: =IF(VLOOKUP(F76,E54:F61,2,FALSE)>=C77,10,0) -> 0 | G77: =IF(F77=10,0,10) -> 10 | H77: =IF(VLOOKUP(H76,E54:F61,2,FALSE)>=C77,10,0) -> 0 | I77: =IF(H77=10,0,10) -> 10 | J77: =IF(VLOOKUP(J76,E54:F61,2,FALSE)>=C77,10,0) -> 0 | K77: =IF(J77=10,0,10) -> 10 | L77: =IF(VLOOKUP(L76,E54:F61,2,FALSE)>=C77,10,0) -> 10 | M77: =IF(L77=10,0,10) -> 0 | N77: =IF(VLOOKUP(N76,E54:F61,2,FALSE)>=C77,10,0) ->  | O77: =IF(N77=10,0,10) ->  | P77: =IF(VLOOKUP(P76,E54:F61,2,FALSE)>=C77,10,0) ->  | Q77: =IF(P77=10,0,10) ->  | R77: =IF(VLOOKUP(R76,E54:F61,2,FALSE)>=C77,10,0) ->  | S77: =IF(R77=10,0,10) -> 
C78: 2 | D78: =IF(VLOOKUP(D76,E54:F61,2,FALSE)>=C78,10,0) -> 10 | E78: =IF(D78=10,0,10) -> 0 | F78: =IF(VLOOKUP(F76,E54:F61,2,FALSE)>=C78,10,0) -> 0 | G78: 10 | H78: =IF(VLOOKUP(H76,E54:F61,2,FALSE)>=C78,10,0) -> 0 | I78: =IF(H78=10,0,10) -> 10 | J78: =IF(VLOOKUP(J76,E54:F61,2,FALSE)>=C78,10,0) -> 0 | K78: 10 | L78: =IF(VLOOKUP(L76,E54:F61,2,FALSE)>=C78,10,0) -> 10 | M78: 0 | N78: =IF(VLOOKUP(N76,E54:F61,2,FALSE)>=C78,10,0) ->  | P78: =IF(VLOOKUP(P76,E54:F61,2,FALSE)>=C78,10,0) ->  | R78: =IF(VLOOKUP(R76,E54:F61,2,FALSE)>=C78,10,0) -> 
C79: 3 | D79: =IF(VLOOKUP(D76,E54:F61,2,FALSE)>=C79,10,0) -> 10 | E79: 0 | F79: =IF(VLOOKUP(F76,E54:F61,2,FALSE)>=C79,10,0) -> 0 | G79: 10 | H79: =IF(VLOOKUP(H76,E54:F61,2,FALSE)>=C79,10,0) -> 0 | I79: 10 | J79: =IF(VLOOKUP(J76,E54:F61,2,FALSE)>=C79,10,0) -> 0 | K79: 10 | L79: =IF(VLOOKUP(L76,E54:F61,2,FALSE)>=C79,10,0) -> 10 | M79: 0 | N79: =IF(VLOOKUP(N76,E54:F61,2,FALSE)>=C79,10,0) ->  | P79: =IF(VLOOKUP(P76,E54:F61,2,FALSE)>=C79,10,0) ->  | R79: =IF(VLOOKUP(R76,E54:F61,2,FALSE)>=C79,10,0) -> 
C80: 4 | D80: =IF(VLOOKUP(D76,E54:F61,2,FALSE)>=C80,10,0) -> 10 | E80: 0 | F80: =IF(VLOOKUP(F76,E54:F61,2,FALSE)>=C80,10,0) -> 0 | G80: 10 | H80: =IF(VLOOKUP(H76,E54:F61,2,FALSE)>=C80,10,0) -> 0 | I80: 10 | J80: =IF(VLOOKUP(J76,E54:F61,2,FALSE)>=C80,10,0) -> 0 | K80: 10 | L80: =IF(VLOOKUP(L76,E54:F61,2,FALSE)>=C80,10,0) -> 10 | M80: 0 | N80: =IF(VLOOKUP(N76,E54:F61,2,FALSE)>=C80,10,0) ->  | P80: =IF(VLOOKUP(P76,E54:F61,2,FALSE)>=C80,10,0) ->  | R80: =IF(VLOOKUP(R76,E54:F61,2,FALSE)>=C80,10,0) -> 
C81: 5 | D81: =IF(VLOOKUP(D76,E54:F61,2,FALSE)>=C81,10,0) -> 10 | E81: 0 | F81: =IF(VLOOKUP(F76,E54:F61,2,FALSE)>=C81,10,0) -> 0 | G81: 10 | H81: =IF(VLOOKUP(H76,E54:F61,2,FALSE)>=C81,10,0) -> 0 | I81: 10 | J81: =IF(VLOOKUP(J76,E54:F61,2,FALSE)>=C81,10,0) -> 0 | K81: 10 | L81: =IF(VLOOKUP(L76,E54:F61,2,FALSE)>=C81,10,0) -> 10 | M81: 0 | N81: =IF(VLOOKUP(N76,E54:F61,2,FALSE)>=C81,10,0) ->  | P81: =IF(VLOOKUP(P76,E54:F61,2,FALSE)>=C81,10,0) ->  | R81: =IF(VLOOKUP(R76,E54:F61,2,FALSE)>=C81,10,0) -> 
C82: 6 | D82: =IF(VLOOKUP(D76,E54:F61,2,FALSE)>=C82,10,0) -> 10 | E82: 0 | F82: =IF(VLOOKUP(F76,E54:F61,2,FALSE)>=C82,10,0) -> 0 | G82: 10 | H82: =IF(VLOOKUP(H76,E54:F61,2,FALSE)>=C82,10,0) -> 0 | I82: 10 | J82: =IF(VLOOKUP(J76,E54:F61,2,FALSE)>=C82,10,0) -> 0 | K82: 10 | L82: =IF(VLOOKUP(L76,E54:F61,2,FALSE)>=C82,10,0) -> 10 | M82: 0 | N82: =IF(VLOOKUP(N76,E54:F61,2,FALSE)>=C82,10,0) ->  | P82: =IF(VLOOKUP(P76,E54:F61,2,FALSE)>=C82,10,0) ->  | R82: =IF(VLOOKUP(R76,E54:F61,2,FALSE)>=C82,10,0) -> 
C83: 7 | D83: =IF(VLOOKUP(D76,E54:F61,2,FALSE)>=C83,10,0) -> 10 | E83: 0 | F83: =IF(VLOOKUP(F76,E54:F61,2,FALSE)>=C83,10,0) -> 0 | G83: 10 | H83: =IF(VLOOKUP(H76,E54:F61,2,FALSE)>=C83,10,0) -> 0 | I83: 10 | J83: =IF(VLOOKUP(J76,E54:F61,2,FALSE)>=C83,10,0) -> 0 | K83: 10 | L83: =IF(VLOOKUP(L76,E54:F61,2,FALSE)>=C83,10,0) -> 10 | M83: 0 | N83: =IF(VLOOKUP(N76,E54:F61,2,FALSE)>=C83,10,0) ->  | P83: =IF(VLOOKUP(P76,E54:F61,2,FALSE)>=C83,10,0) ->  | R83: =IF(VLOOKUP(R76,E54:F61,2,FALSE)>=C83,10,0) -> 
C84: 8 | D84: =IF(VLOOKUP(D76,E54:F61,2,FALSE)>=C84,10,0) -> 10 | E84: 0 | F84: =IF(VLOOKUP(F76,E54:F61,2,FALSE)>=C84,10,0) -> 0 | G84: 10 | H84: =IF(VLOOKUP(H76,E54:F61,2,FALSE)>=C84,10,0) -> 0 | I84: 10 | J84: =IF(VLOOKUP(J76,E54:F61,2,FALSE)>=C84,10,0) -> 0 | K84: 10 | L84: =IF(VLOOKUP(L76,E54:F61,2,FALSE)>=C84,10,0) -> 10 | M84: 0 | N84: =IF(VLOOKUP(N76,E54:F61,2,FALSE)>=C84,10,0) ->  | P84: =IF(VLOOKUP(P76,E54:F61,2,FALSE)>=C84,10,0) ->  | R84: =IF(VLOOKUP(R76,E54:F61,2,FALSE)>=C84,10,0) -> 
C85: 9 | D85: =IF(VLOOKUP(D76,E54:F61,2,FALSE)>=C85,10,0) -> 10 | E85: 0 | F85: =IF(VLOOKUP(F76,E54:F61,2,FALSE)>=C85,10,0) -> 0 | G85: 10 | H85: =IF(VLOOKUP(H76,E54:F61,2,FALSE)>=C85,10,0) -> 0 | I85: 10 | J85: =IF(VLOOKUP(J76,E54:F61,2,FALSE)>=C85,10,0) -> 0 | K85: 10 | L85: =IF(VLOOKUP(L76,E54:F61,2,FALSE)>=C85,10,0) -> 10 | M85: 0 | N85: =IF(VLOOKUP(N76,E54:F61,2,FALSE)>=C85,10,0) ->  | P85: =IF(VLOOKUP(P76,E54:F61,2,FALSE)>=C85,10,0) ->  | R85: =IF(VLOOKUP(R76,E54:F61,2,FALSE)>=C85,10,0) -> 
C86: 10 | D86: =IF(VLOOKUP(D76,E54:F61,2,FALSE)>=C86,10,0) -> 10 | E86: 0 | F86: =IF(VLOOKUP(F76,E54:F61,2,FALSE)>=C86,10,0) -> 0 | G86: 10 | H86: =IF(VLOOKUP(H76,E54:F61,2,FALSE)>=C86,10,0) -> 0 | I86: 10 | J86: =IF(VLOOKUP(J76,E54:F61,2,FALSE)>=C86,10,0) -> 0 | K86: 10 | L86: =IF(VLOOKUP(L76,E54:F61,2,FALSE)>=C86,10,0) -> 10 | M86: 0 | N86: =IF(VLOOKUP(N76,E54:F61,2,FALSE)>=C86,10,0) ->  | P86: =IF(VLOOKUP(P76,E54:F61,2,FALSE)>=C86,10,0) ->  | R86: =IF(VLOOKUP(R76,E54:F61,2,FALSE)>=C86,10,0) -> 

Sheet Task Calc
A3: =Home!B3 -> 's Plan | D3: ='Gen Tasks'!C3 -> Retirement Planning | H3: ='Gen Tasks'!H3 -> Investment Planning | L3: ='Gen Tasks'!M3 -> Estate Planning*
A4: Financial Life Plan: | D4: =IF(ISBLANK('Gen Tasks'!D4),"",'Gen Tasks'!D4) -> Goal Planning & Monitoring | F4: 1 | H4: =IF(ISBLANK('Gen Tasks'!I4),"",'Gen Tasks'!I4) -> Risk Tolerance Review / GPM | J4: 1 | L4: =IF(ISBLANK('Gen Tasks'!N4),"",'Gen Tasks'!N4) -> Trust / Will Review | N4: 5
A5: Dashboard | D5: =IF(ISBLANK('Gen Tasks'!D5),"",'Gen Tasks'!D5) -> Retirement Income Planning | F5: 3 | H5: =IF(ISBLANK('Gen Tasks'!I5),"",'Gen Tasks'!I5) -> Market / Economic Update | J5: 1 | L5: =IF(ISBLANK('Gen Tasks'!N5),"",'Gen Tasks'!N5) -> Medical Directives | N5: 5
A6: General Planning | D6: =IF(ISBLANK('Gen Tasks'!D6),"",'Gen Tasks'!D6) -> Cash Flow Planning | F6: 3 | H6: =IF(ISBLANK('Gen Tasks'!I6),"",'Gen Tasks'!I6) -> Asset Allocation | J6: 0.5 | L6: =IF(ISBLANK('Gen Tasks'!N6),"",'Gen Tasks'!N6) -> Estate Tax Planning | N6: 5
A7: Age Based Planning | D7: =IF(ISBLANK('Gen Tasks'!D7),"",'Gen Tasks'!D7) -> 401(k) / 403(b) Review | F7: 2 | H7: =IF(ISBLANK('Gen Tasks'!I7),"",'Gen Tasks'!I7) -> Individual Security Review | J7: 1 | L7: =IF(ISBLANK('Gen Tasks'!N7),"",'Gen Tasks'!N7) -> Legacy Planning | N7: 5
A8: Life Events Planning | D8: =IF(ISBLANK('Gen Tasks'!D8),"",'Gen Tasks'!D8) -> Reliable Income Review | F8: 5 | H8: =IF(ISBLANK('Gen Tasks'!I8),"",'Gen Tasks'!I8) -> Performance Review | J8: 1 | L8: =IF(ISBLANK('Gen Tasks'!N8),"",'Gen Tasks'!N8) -> Charitable Planning | N8: 5
A9: Niche Planning | D9: =IF(ISBLANK('Gen Tasks'!D9),"",'Gen Tasks'!D9) -> Alternative Income Strategies | F9: 1 | H9: =IF(ISBLANK('Gen Tasks'!I9),"",'Gen Tasks'!I9) -> Outside Asset Review | J9: 1 | L9: =IF(ISBLANK('Gen Tasks'!N9),"",'Gen Tasks'!N9) -> Your Digital Estate | N9: 1
A10: Professional Circle | D10: =IF(ISBLANK('Gen Tasks'!D10),"",'Gen Tasks'!D10) -> RMD Planning | F10: 1 | H10: =IF(ISBLANK('Gen Tasks'!I10),"",'Gen Tasks'!I10) -> College Planning | J10: 1 | L10: =IF(ISBLANK('Gen Tasks'!N10),"",'Gen Tasks'!N10) -> Planning for Parents | N10: 3
A11: GlidePath to Retirement | D11: =IF(ISBLANK('Gen Tasks'!D11),"",'Gen Tasks'!D11) ->  | F11: 1 | H11: =IF(ISBLANK('Gen Tasks'!I11),"",'Gen Tasks'!I11) -> Investment Policy Statement | J11: 5 | L11: =IF(ISBLANK('Gen Tasks'!N11),"",'Gen Tasks'!N11) -> Power(s) of Attorney | N11: 3
A12: Results
A13: Family Tree
A14: Feedback
A15: Instructions
A16: Release Notes | D16: ='Gen Tasks'!D16 -> Tax Planning | H16: ='Gen Tasks'!H16 -> Risk Planning | L16: ='Gen Tasks'!M16 -> Misc.
D17: =IF(ISBLANK('Gen Tasks'!D17),"",'Gen Tasks'!D17) -> Tax Harvesting | F17: 1 | H17: =IF(ISBLANK('Gen Tasks'!I17),"",'Gen Tasks'!I17) -> Asset Protection Strategies | J17: 5 | L17: =IF(ISBLANK('Gen Tasks'!N17),"",'Gen Tasks'!N17) -> Advisor Check / Feedback | N17: 1
D18: =IF(ISBLANK('Gen Tasks'!D18),"",'Gen Tasks'!D18) -> Pre-tax / Post-tax Strategies | F18: 1 | H18: =IF(ISBLANK('Gen Tasks'!I18),"",'Gen Tasks'!I18) -> Insurance Plan Review | J18: 5 | L18: =IF(ISBLANK('Gen Tasks'!N18),"",'Gen Tasks'!N18) -> Limited Trade Authorizations | N18: 99
D19: =IF(ISBLANK('Gen Tasks'!D19),"",'Gen Tasks'!D19) -> CPA Coordination | F19: 1 | H19: =IF(ISBLANK('Gen Tasks'!I19),"",'Gen Tasks'!I19) -> Health / Disability Plan Review | J19: 3 | L19: =IF(ISBLANK('Gen Tasks'!N19),"",'Gen Tasks'!N19) -> Trustee Delegation | N19: 99
D20: =IF(ISBLANK('Gen Tasks'!D20),"",'Gen Tasks'!D20) -> Tax Efficient Strategies | F20: 1 | H20: =IF(ISBLANK('Gen Tasks'!I20),"",'Gen Tasks'!I20) -> Beneficiary Review | J20: 3 | L20: =IF(ISBLANK('Gen Tasks'!N20),"",'Gen Tasks'!N20) -> Beneficiary Designations | N20: 99
D21: =IF(ISBLANK('Gen Tasks'!D21),"",'Gen Tasks'!D21) -> Forecast income for 2019 & 2020 | F21: 1 | H21: =IF(ISBLANK('Gen Tasks'!I21),"",'Gen Tasks'!I21) -> Long Term Care | J21: 3 | L21: =IF(ISBLANK('Gen Tasks'!N21),"",'Gen Tasks'!N21) -> Titling of Property | N21: 99
D22: =IF(ISBLANK('Gen Tasks'!D22),"",'Gen Tasks'!D22) -> Forecast invest income for 2020 | F22: 1 | H22: =IF(ISBLANK('Gen Tasks'!I22),"",'Gen Tasks'!I22) -> P&C Insurance Review | J22: 1 | L22: =IF(ISBLANK('Gen Tasks'!N22),"",'Gen Tasks'!N22) ->  | N22: 99
D23: =IF(ISBLANK('Gen Tasks'!D23),"",'Gen Tasks'!D23) -> State Tax Planning | F23: 1 | H23: =IF(ISBLANK('Gen Tasks'!I23),"",'Gen Tasks'!I23) -> Emergency Line of Credit | J23: 99 | L23: =IF(ISBLANK('Gen Tasks'!N23),"",'Gen Tasks'!N23) ->  | N23: 99

Sheet GlidePath
D2: GlidePath to Retirement
A3: =Home!B3 -> 's Plan
A4: Financial Life Plan:
A5: Dashboard | C5: Financial | G5: Healthcare | K5: GlidePath to Retirement Completion
A6: General Planning | C6: =IF(D6="","",IF(E6>(TODAY()-((F6*365.25)*0.85)),0,IF(E6>(TODAY()-(F6*365.25)),2,3))) -> 0 | D6: Pre- Retirement Risk Assessment | E6: 2014-08-11 | F6: 99 | G6: =IF(H6="","",IF(I6>(TODAY()-((J6*365.25)*0.85)),0,IF(I6>(TODAY()-(J6*365.25)),2,3))) -> 0 | H6: Healthcare Cost Assessment | I6: 2014-08-11 | J6: 99
A7: Age Based Planning | C7: 0 | D7: Business / Career Transition Plan | E7: 2014-08-11 | F7: 99 | G7: =IF(H7="","",IF(I7>(TODAY()-((J7*365.25)*0.85)),0,IF(I7>(TODAY()-(J7*365.25)),2,3))) -> 0 | H7: Medicare Planning | I7: 2014-08-12 | J7: 99
A8: Life Events Planning | C8: 0 | D8: Begin Consolidation of Outside Assets | E8: na | F8: 99 | G8: =IF(H8="","",IF(I8>(TODAY()-((J8*365.25)*0.85)),0,IF(I8>(TODAY()-(J8*365.25)),2,3))) -> 0 | H8: Life Insurance | I8: 2014-08-13 | J8: 99
A9: Niche Planning | C9: 0 | D9: Social Security Optimization | E9: 2014-03-15 | F9: 99 | G9: =IF(H9="","",IF(I9>(TODAY()-((J9*365.25)*0.85)),0,IF(I9>(TODAY()-(J9*365.25)),2,3))) -> 3 | H9: Long Term Care Insurance | J9: 99
A10: Professional Circle | C10: 0 | D10: Debt Strategy | E10: 2014-08-13 | F10: 99 | G10: 0 | H10: Additional topic | I10: na | J10: 99
A11: GlidePath to Retirement | C11: 0 | D11: Sandwich Obligations | E11: 2014-08-13 | F11: 99 | G11: 3 | H11: Additional topic | J11: 99
A12: Results | C12: 3 | D12: Finalize / Confirm Retirement Benefits | F12: 99 | G12: 3 | H12: Additional topic | J12: 99
A13: Family Tree | F13: 99 | J13: 99
A14: Feedback | F14: 99 | J14: 99
A15: Instructions | F15: 99 | G15: =IF(H15="","",IF(I15>(TODAY()-((J15*365.25)*0.85)),0,IF(I15>(TODAY()-(J15*365.25)),2,3))) ->  | J15: 99
A16: Release Notes
C19: Lifestyle | G19: Legal
C20: =IF(D20="","",IF(E20>(TODAY()-((F20*365.25)*0.85)),0,IF(E20>(TODAY()-(F20*365.25)),2,3))) -> 0 | D20: Retirement Lifestyle Plan | E20: 2014-11-25 | F20: 99 | G20: =IF(H20="","",IF(I20>(TODAY()-((J20*365.25)*0.85)),0,IF(I20>(TODAY()-(J20*365.25)),2,3))) -> 0 | H20: Update Will and Trust for Retirement | I20: 2014-08-08 | J20: 99
C21: =IF(D21="","",IF(E21>(TODAY()-((F21*365.25)*0.85)),0,IF(E21>(TODAY()-(F21*365.25)),2,3))) -> 0 | D21: Retirement Location | E21: 2014-11-26 | F21: 99 | G21: =IF(H21="","",IF(I21>(TODAY()-((J21*365.25)*0.85)),0,IF(I21>(TODAY()-(J21*365.25)),2,3))) -> 0 | H21: Power of Attorney | I21: 2014-08-09 | J21: 99
C22: =IF(D22="","",IF(E22>(TODAY()-((F22*365.25)*0.85)),0,IF(E22>(TODAY()-(F22*365.25)),2,3))) -> 0 | D22: Plan to Finish Life at Home | E22: 2014-11-27 | F22: 99 | G22: =IF(H22="","",IF(I22>(TODAY()-((J22*365.25)*0.85)),0,IF(I22>(TODAY()-(J22*365.25)),2,3))) -> 3 | H22: Medical Directives | J22: 99
C23: =IF(D23="","",IF(E23>(TODAY()-((F23*365.25)*0.85)),0,IF(E23>(TODAY()-(F23*365.25)),2,3))) ->  | F23: 99 | G23: =IF(H23="","",IF(I23>(TODAY()-((J23*365.25)*0.85)),0,IF(I23>(TODAY()-(J23*365.25)),2,3))) -> 3 | H23: Estate Plan | J23: 99
C24: =IF(D24="","",IF(E24>(TODAY()-((F24*365.25)*0.85)),0,IF(E24>(TODAY()-(F24*365.25)),2,3))) ->  | F24: 99 | G24: =IF(H24="","",IF(I24>(TODAY()-((J24*365.25)*0.85)),0,IF(I24>(TODAY()-(J24*365.25)),2,3))) ->  | J24: 99
C29: =IFERROR(((COUNT(C20:C28)-COUNTIF(E20:E28,"na"))-COUNTIF(C20:C28,3))/((COUNT(C20:C28)-COUNTIF(E20:E28,"na"))),1) -> 1 | G29: =IFERROR(((COUNT(G20:G28)-COUNTIF(I20:I28,"na"))-COUNTIF(G20:G28,3))/((COUNT(G20:G28)-COUNTIF(I20:I28,"na"))),1) -> 0.5
H37: Tax Planning
J38: =(COUNTIF((C6:C24),0)-(COUNTIF((C6:C24),"na")))+(COUNTIF((G6:G24),0)-(COUNTIF((G6:G24),"na"))) -> 15 | K38: Green | L38: =((J38/J41)*0.75)*100 -> 53.57142857
J39: =(COUNTIF((C6:C24),2))+(COUNTIF((G6:G24),2)) -> 0 | K39: Yellow | L39: =((J39/J41)*0.75)*100 -> 0
J40: =(COUNTIF((C6:C24),3))+(COUNTIF((G6:G24),3)) -> 6 | K40: Red | L40: =((J40/J41)*0.75)*100 -> 21.42857143
J41: =(COUNT((C6:C24))-(COUNTIF((C6:C24),"na")))+(COUNT((G6:G24))-(COUNTIF((G6:G24),"na"))) -> 21 | K41: white | L41: 25
L42: =SUM(L38:L41) -> 100
L43: =SUM(L38:L40) -> 75
L44: =SUM(L38:L39) -> 53.57142857
L45: =L44/L43 -> 0.7142857143
E51: Composite
A52: Gauge | E52: Value | F52: Degs | H52: x | I52: y
A53: Value | B53: =((C18+G18+C29+G29)/4)*100 -> 37.5 | D53: Min | E53: 0 | F53: 0 | H53: =50-(50*COS(RADIANS(F55))) -> 30.86582838 | I53: =50*SIN(RADIANS(F55)) -> 46.19397663
A54: Pointer | B54: 2 | D54: Max | E54: 100 | F54: 180 | H54: =50-(2*COS(RADIANS(F55+90))) -> 51.84775907 | I54: =2*SIN(RADIANS(F55+90)) -> 0.7653668647
A55: End | B55: =200-SUM(B53:B54) -> 160.5 | D55: Actual | E55: =((C18+G18+C29+G29)/4)*100 -> 37.5 | F55: =((E55-E53)/(E54-E53))*180 -> 67.5 | H55: =50-(2*COS(RADIANS(F55-90))) -> 48.15224093 | I55: =2*SIN(RADIANS(F55-90)) -> -0.7653668647
D56: Scale1 | E56: 20 | H56: =H53 -> 30.86582838 | I56: =I53 -> 46.19397663
D57: Scale2 | E57: 40 | H57: 50 | I57: 0
D58: Scale3 | E58: 60
D59: Scale4 | E59: 80

Sheet Feedback
D2: Feedback
A3: =Home!B3 -> 's Plan
A4: Financial Life Plan:
A5: Dashboard
A6: General Planning
A7: Age Based Planning
A8: Life Events Planning
A9: Niche Planning
A10: Professional Circle
A11: GlidePath to Retirement
A12: Results
A13: Family Tree
A14: Feedback
A15: Instructions
A16: Release Notes
C29: =IFERROR(((COUNT(C20:C28)-COUNTIF(E20:E28,"na"))-COUNTIF(C20:C28,3))/((COUNT(C20:C28)-COUNTIF(E20:E28,"na"))),1) -> 1 | G29: =IFERROR(((COUNT(G20:G28)-COUNTIF(I20:I28,"na"))-COUNTIF(G20:G28,3))/((COUNT(G20:G28)-COUNTIF(I20:I28,"na"))),1) -> 1
A52: Gauge
A53: Value | B53: =((C18+G18+C29+G29)/4)*100 -> 50
A54: Pointer | B54: 2
A55: End | B55: =200-SUM(B53:B54) -> 148

Sheet Print
C4: =IF(Home!J8="",CONCATENATE(Home!G8,"'s"),CONCATENATE(Home!G8," & ",Home!J8,"'s ")) -> 's
B15: ='Gen Tasks'!C4 -> 3 | C15: =IF('Gen Tasks'!D4=0,"",'Gen Tasks'!D4) -> Goal Planning & Monitoring
B16: ='Gen Tasks'!C5 -> 3 | C16: =IF('Gen Tasks'!D5=0,"",'Gen Tasks'!D5) -> Retirement Income Planning
B17: ='Gen Tasks'!C6 -> 3 | C17: =IF('Gen Tasks'!D6=0,"",'Gen Tasks'!D6) -> Cash Flow Planning
B18: ='Gen Tasks'!C7 -> 3 | C18: =IF('Gen Tasks'!D7=0,"",'Gen Tasks'!D7) -> 401(k) / 403(b) Review
B19: ='Gen Tasks'!C8 -> 2 | C19: =IF('Gen Tasks'!D8=0,"",'Gen Tasks'!D8) -> Reliable Income Review
B20: ='Gen Tasks'!C9 -> 3 | C20: =IF('Gen Tasks'!D9=0,"",'Gen Tasks'!D9) -> Alternative Income Strategies
B21: ='Gen Tasks'!C10 -> 0 | C21: =IF('Gen Tasks'!D10=0,"",'Gen Tasks'!D10) -> RMD Planning
B22: ='Gen Tasks'!C11 ->  | C22: =IF('Gen Tasks'!D11=0,"",'Gen Tasks'!D11) -> 
B26: ='Gen Tasks'!H4 -> 3 | C26: =IF('Gen Tasks'!I4=0,"",'Gen Tasks'!I4) -> Risk Tolerance Review / GPM
B27: ='Gen Tasks'!H5 -> 3 | C27: =IF('Gen Tasks'!I5=0,"",'Gen Tasks'!I5) -> Market / Economic Update
B28: ='Gen Tasks'!H6 -> 3 | C28: =IF('Gen Tasks'!I6=0,"",'Gen Tasks'!I6) -> Asset Allocation
B29: ='Gen Tasks'!H7 -> 0 | C29: =IF('Gen Tasks'!I7=0,"",'Gen Tasks'!I7) -> Individual Security Review
B30: ='Gen Tasks'!H8 -> 3 | C30: =IF('Gen Tasks'!I8=0,"",'Gen Tasks'!I8) -> Performance Review
B31: ='Gen Tasks'!H9 -> 3 | C31: =IF('Gen Tasks'!I9=0,"",'Gen Tasks'!I9) -> Outside Asset Review
B32: ='Gen Tasks'!H10 -> 3 | C32: =IF('Gen Tasks'!I10=0,"",'Gen Tasks'!I10) -> College Planning
B33: ='Gen Tasks'!H11 -> 3 | C33: =IF('Gen Tasks'!I11=0,"",'Gen Tasks'!I11) -> Investment Policy Statement
B38: ='Gen Tasks'!M4 -> 3 | C38: =IF('Gen Tasks'!N4=0,"",'Gen Tasks'!N4) -> Trust / Will Review
B39: ='Gen Tasks'!M5 -> 3 | C39: =IF('Gen Tasks'!N5=0,"",'Gen Tasks'!N5) -> Medical Directives
B40: ='Gen Tasks'!M6 -> 3 | C40: =IF('Gen Tasks'!N6=0,"",'Gen Tasks'!N6) -> Estate Tax Planning
B41: ='Gen Tasks'!M7 -> 3 | C41: =IF('Gen Tasks'!N7=0,"",'Gen Tasks'!N7) -> Legacy Planning
B42: ='Gen Tasks'!M8 -> 3 | C42: =IF('Gen Tasks'!N8=0,"",'Gen Tasks'!N8) -> Charitable Planning
B43: ='Gen Tasks'!M9 -> 3 | C43: =IF('Gen Tasks'!N9=0,"",'Gen Tasks'!N9) -> Your Digital Estate
B44: ='Gen Tasks'!M10 -> 0 | C44: =IF('Gen Tasks'!N10=0,"",'Gen Tasks'!N10) -> Planning for Parents
B48: ='Gen Tasks'!C17 -> 3 | C48: =IF('Gen Tasks'!D17=0,"",'Gen Tasks'!D17) -> Tax Harvesting
B49: ='Gen Tasks'!C18 -> 3 | C49: =IF('Gen Tasks'!D18=0,"",'Gen Tasks'!D18) -> Pre-tax / Post-tax Strategies
B50: ='Gen Tasks'!C19 -> 3 | C50: =IF('Gen Tasks'!D19=0,"",'Gen Tasks'!D19) -> CPA Coordination
B51: ='Gen Tasks'!C20 -> 3 | C51: =IF('Gen Tasks'!D20=0,"",'Gen Tasks'!D20) -> Tax Efficient Strategies
B52: ='Gen Tasks'!C21 -> 3 | C52: =IF('Gen Tasks'!D21=0,"",'Gen Tasks'!D21) -> Forecast income for 2019 & 2020
B53: ='Gen Tasks'!C22 -> 3 | C53: =IF('Gen Tasks'!D22=0,"",'Gen Tasks'!D22) -> Forecast invest income for 2020
B54: ='Gen Tasks'!C23 -> 3 | C54: =IF('Gen Tasks'!D23=0,"",'Gen Tasks'!D23) -> State Tax Planning
B58: ='Gen Tasks'!H17 -> 2 | C58: =IF('Gen Tasks'!I17=0,"",'Gen Tasks'!I17) -> Asset Protection Strategies
B59: ='Gen Tasks'!H18 -> 2 | C59: =IF('Gen Tasks'!I18=0,"",'Gen Tasks'!I18) -> Insurance Plan Review
B60: ='Gen Tasks'!H19 -> 3 | C60: =IF('Gen Tasks'!I19=0,"",'Gen Tasks'!I19) -> Health / Disability Plan Review
B61: ='Gen Tasks'!H20 -> 3 | C61: =IF('Gen Tasks'!I20=0,"",'Gen Tasks'!I20) -> Beneficiary Review
B62: ='Gen Tasks'!H21 -> 3 | C62: =IF('Gen Tasks'!I21=0,"",'Gen Tasks'!I21) -> Long Term Care
B63: ='Gen Tasks'!H22 -> 3 | C63: =IF('Gen Tasks'!I22=0,"",'Gen Tasks'!I22) -> P&C Insurance Review
B64: ='Gen Tasks'!H23 -> 3 | C64: =IF('Gen Tasks'!I23=0,"",'Gen Tasks'!I23) -> Emergency Line of Credit

Sheet MeetingRecap
C5: =TODAY() -> 2019-07-08 | G5: Meeting Recap*
G6: Date | H6: 2015-02-10
A7: Task | B7: Notes | C7: Date | D7: Section | E7: Type | G7: Type | H7: (All)
A8: ='Gen Tasks'!D4 -> Goal Planning & Monitoring | B8: =IF('Gen Tasks'!E4=0,"",'Gen Tasks'!E4) ->  | C8: =IF('Gen Tasks'!F4=0,"",'Gen Tasks'!F4) -> 2014-05-14 | D8: Retirement Planning | E8: general
A9: ='Gen Tasks'!D5 -> Retirement Income Planning | B9: =IF('Gen Tasks'!E5=0,"",'Gen Tasks'!E5) ->  | C9: =IF('Gen Tasks'!F5=0,"",'Gen Tasks'!F5) -> 2015-02-06 | D9: Retirement Planning | E9: general | G9: Risk Planning
A10: ='Gen Tasks'!D6 -> Cash Flow Planning | B10: =IF('Gen Tasks'!E6=0,"",'Gen Tasks'!E6) ->  | C10: =IF('Gen Tasks'!F6=0,"",'Gen Tasks'!F6) -> 2015-02-06 | D10: Retirement Planning | E10: general | G10: Health / Disability Plan Review
A11: ='Gen Tasks'!D7 -> 401(k) / 403(b) Review | B11: =IF('Gen Tasks'!E7=0,"",'Gen Tasks'!E7) ->  | C11: =IF('Gen Tasks'!F7=0,"",'Gen Tasks'!F7) -> 2013-04-06 | D11: Retirement Planning | E11: general | M11: *Please note: When a date is overwritten, the old date will not appear here. This only reflects the current dates in the speadsheet.
A12: ='Gen Tasks'!D8 -> Reliable Income Review | B12: =IF('Gen Tasks'!E8=0,"",'Gen Tasks'!E8) ->  | C12: =IF('Gen Tasks'!F8=0,"",'Gen Tasks'!F8) -> 2015-02-06 | D12: Retirement Planning | E12: general | G12: P&C Insurance Review
A13: ='Gen Tasks'!D9 -> Alternative Income Strategies | B13: =IF('Gen Tasks'!E9=0,"",'Gen Tasks'!E9) ->  | C13: =IF('Gen Tasks'!F9=0,"",'Gen Tasks'!F9) ->  | D13: Retirement Planning | E13: general
A14: ='Gen Tasks'!D10 -> RMD Planning | B14: =IF('Gen Tasks'!E10=0,"",'Gen Tasks'!E10) ->  | C14: =IF('Gen Tasks'!F10=0,"",'Gen Tasks'!F10) -> na | D14: Retirement Planning | E14: general
A15: ='Gen Tasks'!D11 -> 0 | B15: =IF('Gen Tasks'!E11=0,"",'Gen Tasks'!E11) ->  | C15: =IF('Gen Tasks'!F11=0,"",'Gen Tasks'!F11) ->  | D15: Retirement Planning | E15: general
A16: ='Gen Tasks'!I4 -> Risk Tolerance Review / GPM | B16: =IF('Gen Tasks'!J4=0,"",'Gen Tasks'!J4) ->  | C16: =IF('Gen Tasks'!K4=0,"",'Gen Tasks'!K4) -> 2015-01-06 | D16: Investment Planning | E16: general
A17: ='Gen Tasks'!I5 -> Market / Economic Update | B17: =IF('Gen Tasks'!J5=0,"",'Gen Tasks'!J5) ->  | C17: =IF('Gen Tasks'!K5=0,"",'Gen Tasks'!K5) -> 2014-03-01 | D17: Investment Planning | E17: general
A18: ='Gen Tasks'!I6 -> Asset Allocation | B18: =IF('Gen Tasks'!J6=0,"",'Gen Tasks'!J6) ->  | C18: =IF('Gen Tasks'!K6=0,"",'Gen Tasks'!K6) -> 2015-02-09 | D18: Investment Planning | E18: general
A19: ='Gen Tasks'!I7 -> Individual Security Review | B19: =IF('Gen Tasks'!J7=0,"",'Gen Tasks'!J7) ->  | C19: =IF('Gen Tasks'!K7=0,"",'Gen Tasks'!K7) -> na | D19: Investment Planning | E19: general
A20: ='Gen Tasks'!I8 -> Performance Review | B20: =IF('Gen Tasks'!J8=0,"",'Gen Tasks'!J8) ->  | C20: =IF('Gen Tasks'!K8=0,"",'Gen Tasks'!K8) -> 2015-01-06 | D20: Investment Planning | E20: general
A21: ='Gen Tasks'!I9 -> Outside Asset Review | B21: =IF('Gen Tasks'!J9=0,"",'Gen Tasks'!J9) ->  | C21: =IF('Gen Tasks'!K9=0,"",'Gen Tasks'!K9) -> 2014-01-01 | D21: Investment Planning | E21: general
A22: ='Gen Tasks'!I10 -> College Planning | B22: =IF('Gen Tasks'!J10=0,"",'Gen Tasks'!J10) ->  | C22: =IF('Gen Tasks'!K10=0,"",'Gen Tasks'!K10) -> 2012-01-01 | D22: Investment Planning | E22: general
A23: ='Gen Tasks'!I11 -> Investment Policy Statement | B23: =IF('Gen Tasks'!J11=0,"",'Gen Tasks'!J11) ->  | C23: =IF('Gen Tasks'!K11=0,"",'Gen Tasks'!K11) -> 2012-01-01 | D23: Investment Planning | E23: general
A24: ='Gen Tasks'!N4 -> Trust / Will Review | B24: =IF('Gen Tasks'!O4=0,"",'Gen Tasks'!O4) ->  | C24: =IF('Gen Tasks'!P4=0,"",'Gen Tasks'!P4) -> 2011-01-01 | D24: Estate Planning | E24: general
A25: ='Gen Tasks'!N5 -> Medical Directives | B25: =IF('Gen Tasks'!O5=0,"",'Gen Tasks'!O5) ->  | C25: =IF('Gen Tasks'!P5=0,"",'Gen Tasks'!P5) -> 2014-01-01 | D25: Estate Planning | E25: general
A26: ='Gen Tasks'!N6 -> Estate Tax Planning | B26: =IF('Gen Tasks'!O6=0,"",'Gen Tasks'!O6) ->  | C26: =IF('Gen Tasks'!P6=0,"",'Gen Tasks'!P6) -> 2010-01-01 | D26: Estate Planning | E26: general
A27: ='Gen Tasks'!N7 -> Legacy Planning | B27: =IF('Gen Tasks'!O7=0,"",'Gen Tasks'!O7) ->  | C27: =IF('Gen Tasks'!P7=0,"",'Gen Tasks'!P7) -> 2011-01-01 | D27: Estate Planning | E27: general
A28: ='Gen Tasks'!N8 -> Charitable Planning | B28: =IF('Gen Tasks'!O8=0,"",'Gen Tasks'!O8) ->  | C28: =IF('Gen Tasks'!P8=0,"",'Gen Tasks'!P8) -> 2010-01-01 | D28: Estate Planning | E28: general
A29: ='Gen Tasks'!N9 -> Your Digital Estate | B29: =IF('Gen Tasks'!O9=0,"",'Gen Tasks'!O9) ->  | C29: =IF('Gen Tasks'!P9=0,"",'Gen Tasks'!P9) -> 2015-02-09 | D29: Estate Planning | E29: general
A30: ='Gen Tasks'!N10 -> Planning for Parents | B30: =IF('Gen Tasks'!O10=0,"",'Gen Tasks'!O10) ->  | C30: =IF('Gen Tasks'!P10=0,"",'Gen Tasks'!P10) -> na | D30: Estate Planning | E30: general
A31: ='Gen Tasks'!N11 -> Power(s) of Attorney | B31: =IF('Gen Tasks'!O11=0,"",'Gen Tasks'!O11) ->  | C31: =IF('Gen Tasks'!P11=0,"",'Gen Tasks'!P11) -> na | D31: Estate Planning | E31: general
A32: ='Gen Tasks'!D17 -> Tax Harvesting | B32: =IF('Gen Tasks'!E17=0,"",'Gen Tasks'!E17) ->  | C32: =IF('Gen Tasks'!F17=0,"",'Gen Tasks'!F17) -> 2014-11-19 | D32: Tax Planning | E32: general
A33: ='Gen Tasks'!D18 -> Pre-tax / Post-tax Strategies | B33: =IF('Gen Tasks'!E18=0,"",'Gen Tasks'!E18) ->  | C33: =IF('Gen Tasks'!F18=0,"",'Gen Tasks'!F18) -> 2014-11-19 | D33: Tax Planning | E33: general
A34: ='Gen Tasks'!D19 -> CPA Coordination | B34: =IF('Gen Tasks'!E19=0,"",'Gen Tasks'!E19) ->  | C34: =IF('Gen Tasks'!F19=0,"",'Gen Tasks'!F19) -> 2014-11-19 | D34: Tax Planning | E34: general
A35: ='Gen Tasks'!D20 -> Tax Efficient Strategies | B35: =IF('Gen Tasks'!E20=0,"",'Gen Tasks'!E20) ->  | C35: =IF('Gen Tasks'!F20=0,"",'Gen Tasks'!F20) -> 2014-11-19 | D35: Tax Planning | E35: general
A36: ='Gen Tasks'!D21 -> Forecast income for 2019 & 2020 | B36: =IF('Gen Tasks'!E21=0,"",'Gen Tasks'!E21) ->  | C36: =IF('Gen Tasks'!F21=0,"",'Gen Tasks'!F21) -> 2014-11-19 | D36: Tax Planning | E36: general
A37: ='Gen Tasks'!D22 -> Forecast invest income for 2020 | B37: =IF('Gen Tasks'!E22=0,"",'Gen Tasks'!E22) ->  | C37: =IF('Gen Tasks'!F22=0,"",'Gen Tasks'!F22) ->  | D37: Tax Planning | E37: general
A38: ='Gen Tasks'!D23 -> State Tax Planning | B38: =IF('Gen Tasks'!E23=0,"",'Gen Tasks'!E23) ->  | C38: =IF('Gen Tasks'!F23=0,"",'Gen Tasks'!F23) ->  | D38: Tax Planning | E38: general
A39: ='Gen Tasks'!I17 -> Asset Protection Strategies | B39: =IF('Gen Tasks'!J17=0,"",'Gen Tasks'!J17) ->  | C39: =IF('Gen Tasks'!K17=0,"",'Gen Tasks'!K17) -> 2014-07-28 | D39: Risk Planning | E39: general
A40: ='Gen Tasks'!I18 -> Insurance Plan Review | B40: =IF('Gen Tasks'!J18=0,"",'Gen Tasks'!J18) ->  | C40: =IF('Gen Tasks'!K18=0,"",'Gen Tasks'!K18) -> 2014-07-28 | D40: Risk Planning | E40: general
A41: ='Gen Tasks'!I19 -> Health / Disability Plan Review | B41: =IF('Gen Tasks'!J19=0,"",'Gen Tasks'!J19) ->  | C41: =IF('Gen Tasks'!K19=0,"",'Gen Tasks'!K19) -> 2015-02-10 | D41: Risk Planning | E41: general
A42: ='Gen Tasks'!I20 -> Beneficiary Review | B42: =IF('Gen Tasks'!J20=0,"",'Gen Tasks'!J20) ->  | C42: =IF('Gen Tasks'!K20=0,"",'Gen Tasks'!K20) -> 2012-01-30 | D42: Risk Planning | E42: general
A43: ='Gen Tasks'!I21 -> Long Term Care | B43: =IF('Gen Tasks'!J21=0,"",'Gen Tasks'!J21) ->  | C43: =IF('Gen Tasks'!K21=0,"",'Gen Tasks'!K21) -> 2015-01-13 | D43: Risk Planning | E43: general
A44: ='Gen Tasks'!I22 -> P&C Insurance Review | B44: =IF('Gen Tasks'!J22=0,"",'Gen Tasks'!J22) ->  | C44: =IF('Gen Tasks'!K22=0,"",'Gen Tasks'!K22) -> 2015-02-10 | D44: Risk Planning | E44: general
A45: ='Gen Tasks'!I23 -> Emergency Line of Credit | B45: =IF('Gen Tasks'!J23=0,"",'Gen Tasks'!J23) ->  | C45: =IF('Gen Tasks'!K23=0,"",'Gen Tasks'!K23) ->  | D45: Risk Planning | E45: general
A46: =IF('Gen Tasks'!N17=0,"",'Gen Tasks'!N17) -> Advisor Check / Feedback | B46: =IF('Gen Tasks'!O17=0,"",'Gen Tasks'!O17) ->  | C46: =IF('Gen Tasks'!P17=0,"",'Gen Tasks'!P17) -> 2015-01-13 | D46: Misc | E46: general
A47: =IF('Gen Tasks'!N18=0,"",'Gen Tasks'!N18) -> Limited Trade Authorizations | B47: =IF('Gen Tasks'!O18=0,"",'Gen Tasks'!O18) ->  | C47: =IF('Gen Tasks'!P18=0,"",'Gen Tasks'!P18) -> 2015-01-13 | D47: Misc | E47: general
A48: =IF('Gen Tasks'!N19=0,"",'Gen Tasks'!N19) -> Trustee Delegation | B48: =IF('Gen Tasks'!O19=0,"",'Gen Tasks'!O19) ->  | C48: =IF('Gen Tasks'!P19=0,"",'Gen Tasks'!P19) -> 2015-01-13 | D48: Misc | E48: general
A49: =IF('Gen Tasks'!N20=0,"",'Gen Tasks'!N20) -> Beneficiary Designations | B49: =IF('Gen Tasks'!O20=0,"",'Gen Tasks'!O20) ->  | C49: =IF('Gen Tasks'!P20=0,"",'Gen Tasks'!P20) ->  | D49: Misc | E49: general
A50: =IF('Gen Tasks'!N21=0,"",'Gen Tasks'!N21) -> Titling of Property | B50: =IF('Gen Tasks'!O21=0,"",'Gen Tasks'!O21) ->  | C50: =IF('Gen Tasks'!P21=0,"",'Gen Tasks'!P21) ->  | D50: Misc | E50: general
A51: =IF('Gen Tasks'!N22=0,"",'Gen Tasks'!N22) ->  | B51: =IF('Gen Tasks'!O22=0,"",'Gen Tasks'!O22) ->  | C51: =IF('Gen Tasks'!P22=0,"",'Gen Tasks'!P22) ->  | D51: Misc | E51: general
A52: =IF('Gen Tasks'!N23=0,"",'Gen Tasks'!N23) ->  | B52: =IF('Gen Tasks'!O23=0,"",'Gen Tasks'!O23) ->  | C52: =IF('Gen Tasks'!P23=0,"",'Gen Tasks'!P23) ->  | D52: Misc | E52: general
A53: ='Age Tasks'!D4 -> Budget Planning - CFF | B53: =IF('Age Tasks'!E4=0,"",'Age Tasks'!E4) ->  | C53: =IF('Age Tasks'!F4=0,"",'Age Tasks'!F4) -> na | D53: under 30 | E53: age
A54: ='Age Tasks'!D5 -> Term Life Insurance | B54: =IF('Age Tasks'!E5=0,"",'Age Tasks'!E5) ->  | C54: =IF('Age Tasks'!F5=0,"",'Age Tasks'!F5) -> na | D54: under 30 | E54: age
A55: ='Age Tasks'!D6 -> Student Debt | B55: =IF('Age Tasks'!E6=0,"",'Age Tasks'!E6) ->  | C55: =IF('Age Tasks'!F6=0,"",'Age Tasks'!F6) -> na | D55: under 30 | E55: age
A56: ='Age Tasks'!D7 -> Planning for Marriage | B56: =IF('Age Tasks'!E7=0,"",'Age Tasks'!E7) ->  | C56: =IF('Age Tasks'!F7=0,"",'Age Tasks'!F7) -> na | D56: under 30 | E56: age
A57: ='Age Tasks'!D8 -> Planning for Children | B57: =IF('Age Tasks'!E8=0,"",'Age Tasks'!E8) ->  | C57: =IF('Age Tasks'!F8=0,"",'Age Tasks'!F8) -> na | D57: under 30 | E57: age
A58: ='Age Tasks'!D9 -> Buying First Home | B58: =IF('Age Tasks'!E9=0,"",'Age Tasks'!E9) ->  | C58: =IF('Age Tasks'!F9=0,"",'Age Tasks'!F9) -> na | D58: under 30 | E58: age
A59: ='Age Tasks'!D10 -> 529 Planning | B59: =IF('Age Tasks'!E10=0,"",'Age Tasks'!E10) ->  | C59: =IF('Age Tasks'!F10=0,"",'Age Tasks'!F10) -> na | D59: under 30 | E59: age
A60: ='Age Tasks'!D11 -> Employer Benefits Review | B60: =IF('Age Tasks'!E11=0,"",'Age Tasks'!E11) ->  | C60: =IF('Age Tasks'!F11=0,"",'Age Tasks'!F11) -> na | D60: under 30 | E60: age
A61: ='Age Tasks'!I4 -> 401k/Pension Planning | B61: =IF('Age Tasks'!J4=0,"",'Age Tasks'!J4) ->  | C61: =IF('Age Tasks'!K4=0,"",'Age Tasks'!K4) -> 2014-01-01 | D61: under 40 | E61: age
A62: ='Age Tasks'!I5 -> First Goal Planning & Monitor | B62: =IF('Age Tasks'!J5=0,"",'Age Tasks'!J5) ->  | C62: =IF('Age Tasks'!K5=0,"",'Age Tasks'!K5) -> 2014-01-01 | D62: under 40 | E62: age
A63: ='Age Tasks'!I6 -> Children's Financial Goals | B63: =IF('Age Tasks'!J6=0,"",'Age Tasks'!J6) ->  | C63: =IF('Age Tasks'!K6=0,"",'Age Tasks'!K6) -> 2014-01-01 | D63: under 40 | E63: age
A64: ='Age Tasks'!I7 -> Budgeting - CFF | B64: =IF('Age Tasks'!J7=0,"",'Age Tasks'!J7) ->  | C64: =IF('Age Tasks'!K7=0,"",'Age Tasks'!K7) -> 2014-01-01 | D64: under 40 | E64: age
A65: ='Age Tasks'!I8 -> Home / Mortgage Planning | B65: =IF('Age Tasks'!J8=0,"",'Age Tasks'!J8) ->  | C65: =IF('Age Tasks'!K8=0,"",'Age Tasks'!K8) -> 2014-01-01 | D65: under 40 | E65: age
A66: ='Age Tasks'!I9 -> Employer Benefits Review | B66: =IF('Age Tasks'!J9=0,"",'Age Tasks'!J9) ->  | C66: =IF('Age Tasks'!K9=0,"",'Age Tasks'!K9) -> 2014-01-01 | D66: under 40 | E66: age
A67: ='Age Tasks'!I10 -> Life Insurance / Risk Review | B67: =IF('Age Tasks'!J10=0,"",'Age Tasks'!J10) ->  | C67: =IF('Age Tasks'!K10=0,"",'Age Tasks'!K10) -> 2014-01-01 | D67: under 40 | E67: age
A68: ='Age Tasks'!I11 -> Leverage / Debt Strategy | B68: =IF('Age Tasks'!J11=0,"",'Age Tasks'!J11) ->  | C68: =IF('Age Tasks'!K11=0,"",'Age Tasks'!K11) -> na | D68: under 40 | E68: age
A69: ='Age Tasks'!N4 -> GlidePath to Retirement | B69: =IF('Age Tasks'!O4=0,"",'Age Tasks'!O4) ->  | C69: =IF('Age Tasks'!P4=0,"",'Age Tasks'!P4) -> 2014-11-19 | D69: 50 - 60 | E69: age
A70: ='Age Tasks'!N5 -> 50 - 401(k) and IRA Catchup | B70: =IF('Age Tasks'!O5=0,"",'Age Tasks'!O5) ->  | C70: =IF('Age Tasks'!P5=0,"",'Age Tasks'!P5) -> 2014-11-19 | D70: 50 - 60 | E70: age
A71: ='Age Tasks'!N6 -> Risk Planning Review | B71: =IF('Age Tasks'!O6=0,"",'Age Tasks'!O6) ->  | C71: =IF('Age Tasks'!P6=0,"",'Age Tasks'!P6) -> 2014-11-19 | D71: 50 - 60 | E71: age
A72: ='Age Tasks'!N7 -> 55 - SFS 401(k) Withdrawals | B72: =IF('Age Tasks'!O7=0,"",'Age Tasks'!O7) ->  | C72: =IF('Age Tasks'!P7=0,"",'Age Tasks'!P7) ->  | D72: 50 - 60 | E72: age
A73: ='Age Tasks'!N8 -> 59.5 - IRA Withdrawal | B73: =IF('Age Tasks'!O8=0,"",'Age Tasks'!O8) ->  | C73: =IF('Age Tasks'!P8=0,"",'Age Tasks'!P8) ->  | D73: 50 - 60 | E73: age
A74: ='Age Tasks'!N9 -> Long Term Care Plan | B74: =IF('Age Tasks'!O9=0,"",'Age Tasks'!O9) ->  | C74: =IF('Age Tasks'!P9=0,"",'Age Tasks'!P9) ->  | D74: 50 - 60 | E74: age
A75: ='Age Tasks'!N10 -> Planning for Parents | B75: =IF('Age Tasks'!O10=0,"",'Age Tasks'!O10) ->  | C75: =IF('Age Tasks'!P10=0,"",'Age Tasks'!P10) ->  | D75: 50 - 60 | E75: age
A76: ='Age Tasks'!N11 -> Planning for Grandchildren | B76: =IF('Age Tasks'!O11=0,"",'Age Tasks'!O11) ->  | C76: =IF('Age Tasks'!P11=0,"",'Age Tasks'!P11) ->  | D76: 50 - 60 | E76: age
A77: ='Age Tasks'!D17 -> 61-Social Security Optimization | B77: =IF('Age Tasks'!E17=0,"",'Age Tasks'!E17) ->  | C77: =IF('Age Tasks'!F17=0,"",'Age Tasks'!F17) ->  | D77: 60 - 75 | E77: age
A78: ='Age Tasks'!D18 -> GlidePath to Retirement | B78: =IF('Age Tasks'!E18=0,"",'Age Tasks'!E18) ->  | C78: =IF('Age Tasks'!F18=0,"",'Age Tasks'!F18) ->  | D78: 60 - 75 | E78: age
A79: ='Age Tasks'!D19 -> 65 - Medicare Eligibility | B79: =IF('Age Tasks'!E19=0,"",'Age Tasks'!E19) ->  | C79: =IF('Age Tasks'!F19=0,"",'Age Tasks'!F19) ->  | D79: 60 - 75 | E79: age
A80: ='Age Tasks'!D20 -> Long Term Care Planning | B80: =IF('Age Tasks'!E20=0,"",'Age Tasks'!E20) ->  | C80: =IF('Age Tasks'!F20=0,"",'Age Tasks'!F20) ->  | D80: 60 - 75 | E80: age
A81: ='Age Tasks'!D21 -> Planning for Grandchildren | B81: =IF('Age Tasks'!E21=0,"",'Age Tasks'!E21) ->  | C81: =IF('Age Tasks'!F21=0,"",'Age Tasks'!F21) ->  | D81: 60 - 75 | E81: age
A82: ='Age Tasks'!D22 -> 0 | B82: =IF('Age Tasks'!E22=0,"",'Age Tasks'!E22) ->  | C82: =IF('Age Tasks'!F22=0,"",'Age Tasks'!F22) ->  | D82: 60 - 75 | E82: age
A83: ='Age Tasks'!D23 -> 0 | B83: =IF('Age Tasks'!E23=0,"",'Age Tasks'!E23) ->  | C83: =IF('Age Tasks'!F23=0,"",'Age Tasks'!F23) ->  | D83: 60 - 75 | E83: age
A84: ='Age Tasks'!I17 -> 70 - RMD Planning | B84: =IF('Age Tasks'!J17=0,"",'Age Tasks'!J17) ->  | C84: =IF('Age Tasks'!K17=0,"",'Age Tasks'!K17) ->  | D84: 75 - 85 | E84: age
A85: ='Age Tasks'!I18 -> Age-Proof Planning | B85: =IF('Age Tasks'!J18=0,"",'Age Tasks'!J18) ->  | C85: =IF('Age Tasks'!K18=0,"",'Age Tasks'!K18) ->  | D85: 75 - 85 | E85: age
A86: ='Age Tasks'!I19 -> Long Term Care Planning | B86: =IF('Age Tasks'!J19=0,"",'Age Tasks'!J19) ->  | C86: =IF('Age Tasks'!K19=0,"",'Age Tasks'!K19) ->  | D86: 75 - 85 | E86: age
A87: ='Age Tasks'!I20 -> Planning for Grandchildren | B87: =IF('Age Tasks'!J20=0,"",'Age Tasks'!J20) ->  | C87: =IF('Age Tasks'!K20=0,"",'Age Tasks'!K20) ->  | D87: 75 - 85 | E87: age
A88: ='Age Tasks'!I21 -> 0 | B88: =IF('Age Tasks'!J21=0,"",'Age Tasks'!J21) ->  | C88: =IF('Age Tasks'!K21=0,"",'Age Tasks'!K21) ->  | D88: 75 - 85 | E88: age
A89: ='Age Tasks'!I22 -> 0 | B89: =IF('Age Tasks'!J22=0,"",'Age Tasks'!J22) ->  | C89: =IF('Age Tasks'!K22=0,"",'Age Tasks'!K22) ->  | D89: 75 - 85 | E89: age
A90: ='Age Tasks'!I23 -> 0 | B90: =IF('Age Tasks'!J23=0,"",'Age Tasks'!J23) ->  | C90: =IF('Age Tasks'!K23=0,"",'Age Tasks'!K23) ->  | D90: 75 - 85 | E90: age
A91: ='Age Tasks'!N17 -> Longevity Planning | B91: =IF('Age Tasks'!O17=0,"",'Age Tasks'!O17) ->  | C91: =IF('Age Tasks'!P17=0,"",'Age Tasks'!P17) ->  | D91: 85 over | E91: age
A92: ='Age Tasks'!N18 -> Generational Transfers | B92: =IF('Age Tasks'!O18=0,"",'Age Tasks'!O18) ->  | C92: =IF('Age Tasks'!P18=0,"",'Age Tasks'!P18) ->  | D92: 85 over | E92: age
A93: ='Age Tasks'!N19 -> Charitable Legacy | B93: =IF('Age Tasks'!O19=0,"",'Age Tasks'!O19) ->  | C93: =IF('Age Tasks'!P19=0,"",'Age Tasks'!P19) ->  | D93: 85 over | E93: age
A94: ='Age Tasks'!N20 -> Age-Proof Planning | B94: =IF('Age Tasks'!O20=0,"",'Age Tasks'!O20) ->  | C94: =IF('Age Tasks'!P20=0,"",'Age Tasks'!P20) ->  | D94: 85 over | E94: age
A95: ='Age Tasks'!N21 -> Long Term Care Planning | B95: =IF('Age Tasks'!O21=0,"",'Age Tasks'!O21) ->  | C95: =IF('Age Tasks'!P21=0,"",'Age Tasks'!P21) ->  | D95: 85 over | E95: age
A96: ='Age Tasks'!N22 -> 0 | B96: =IF('Age Tasks'!O22=0,"",'Age Tasks'!O22) ->  | C96: =IF('Age Tasks'!P22=0,"",'Age Tasks'!P22) ->  | D96: 85 over | E96: age
A97: ='Age Tasks'!N23 -> 0 | B97: =IF('Age Tasks'!O23=0,"",'Age Tasks'!O23) ->  | C97: =IF('Age Tasks'!P23=0,"",'Age Tasks'!P23) ->  | D97: 85 over | E97: age

Sheet LEMarriage
E2: Marital Status Change
A3: =Home!B3 -> 's Plan
A4: Financial Life Plan:
A5: Dashboard | D5: Pre Marriage | G5: Divorce | K5: Widowed
A6: General Planning
A7: Age Based Planning | D7: Getting Married Checklist | H7: Getting divorced checklist | L7: Executor Checklist
A8: Life Events Planning | D8: Tax Issues Related to Marriage | H8: Getting Things in Order | L8: Getting Things in Order
A9: Niche Planning | D9: Planning Tips For Women | H9: Things to Remember | L9: Things to Remember
A10: Professional Circle | D10: Planning For Remarriage | H10: How Divorce Affects SSA | L10: Losing a Loved One Emails
A11: GlidePath to Retirement | D11: Merging Finances | H11: Handling a Divorce Emails | L11: What to do When a Relative Dies
A12: Results | H12: Planning for divorcing couples | L12: SSA Optimization for Widows
A13: Family Tree | L13: Loss of a Spouse/Family Member | M13: `
A14: Feedback
A15: Instructions
A16: Release Notes

Sheet LERealEstate
E2: Real Estate Change
A3: =Home!B3 -> 's Plan
A4: Financial Life Plan: | N4: 99
A5: Dashboard | C5: Buying | G5: Selling | K5: Mortgage / Refinance
A6: General Planning
A7: Age Based Planning | D7: Buying House Checklist | H7: Selling House Checklist | L7: Mortgage Product Data Sheet
A8: Life Events Planning | D8: Rent vs. Buy Calculator | H8: Guidelines for selling your house | L8: FHA Fixed-Rate Mortgages
A9: Niche Planning | D9: Credit Score Secrets | H9: Bridge Loan (SBL) | L9: Fixed and Adjustable Rate Mortgages
A10: Professional Circle | D10: How much house can I afford? | L10: Securing the Right Jumbo Home Loan
A11: GlidePath to Retirement | D11: Amortization Schedule Calculator | L11: VA Home Mortgage
A12: Results | D12: Debt ratio Calculator | L12: Physicians Mortgage Program
A13: Family Tree | L13: Home Equity Lending Fact Sheet
A14: Feedback | L14: Introducing Your Lending Solutions Consultant
A15: Instructions | L15: The Cost of Relocating
A16: Release Notes | L16: Introduction to Borrowing Options Letter
L17: Refinance break-even calculator

Sheet LEFamilyChange
E2: Family Life Changes
A3: =Home!B3 -> 's Plan
A4: Financial Life Plan: | N4: 99
A5: Dashboard
A6: General Planning | D6: Having a Baby | H6: Adopting | L6: Grandchild
A7: Age Based Planning | L7: Planning for a Grandchild | N7: 99
A8: Life Events Planning | D8: Child and Dependant Care Credit | N8: 99
A9: Niche Planning | D9: College Savings Options | N9: 99
A10: Professional Circle | D10: Leaving a Legacy | N10: 99
A11: GlidePath to Retirement | D11: Protecting Loved Ones With Life Insurance | N11: 99
A12: Results | D12: Financial Planning Issues For New Parents | N12: 99
A13: Family Tree | D13: Today preschool, tomorrow college | N13: 99
A14: Feedback
A15: Instructions
A16: Release Notes

Sheet LEOutsideAsset
E2: Outside Asset Change
A3: =Home!B3 -> 's Plan
A4: Financial Life Plan:
A5: Dashboard | D5: Employer Plans | G5: Employee Plans | K5: Other
A6: General Planning
A7: Age Based Planning
A8: Life Events Planning
A9: Niche Planning
A10: Professional Circle
A11: GlidePath to Retirement
A12: Results
A13: Family Tree
A14: Feedback
A15: Instructions
A16: Release Notes

Sheet LEBusinessChange
E2: Major Business Change
A3: =Home!B3 -> 's Plan
A4: Financial Life Plan:
A5: Dashboard | D5: New / Leaving Job | G5: Pre-Business Sale | K5: Post-Business Sale
A6: General Planning
A7: Age Based Planning | D7: Changing jobs checklist | H7: Checklist for Sale of a Business
A8: Life Events Planning | D8: Things to Remember | H8: Getting Things in Order
A9: Niche Planning | D9: Things to Think About | H9: Things to Remember
A10: Professional Circle | D10: Dealing With a Layoff | H10: Selling A Business Emails
A11: GlidePath to Retirement | D11: Career Change HTML Emails | H11: Business Valuation
A12: Results | D12: 401(k) Plan Choices for Job Change | H12: Business Succession Planning
A13: Family Tree | D13: Managing Your Career Transition | H13: Selling your Business to Family
A14: Feedback | D14: Managing a Job Layoff
A15: Instructions | D15: Coping with Unemployment
A16: Release Notes

Sheet LEHealthChange
E2: Health Status Change
A3: =Home!B3 -> 's Plan
A4: Financial Life Plan:
A5: Dashboard | D5: Health Planning | G5: Catastophic | K5: Assisted Living
A6: General Planning
A7: Age Based Planning | L7: Nursing Home Checklist
A8: Life Events Planning | D8: Your Healthcare Costs in Retirement
A9: Niche Planning | D9: Facing the Complexities of Medicare | L9: Finding the Right Care Facility
A10: Professional Circle | D10: Your Aging Parents and You | H10: Being a Caregiver
A11: GlidePath to Retirement | D11: Helping Relatives Get the Care at Home
A12: Results | D12: Help a Loved One with Alzheimer’s Disease
A13: Family Tree
A14: Feedback
A15: Instructions
A16: Release Notes

Sheet LERetirementChange
E2: Retirement Plan Change
A3: =Home!B3 -> 's Plan
A4: Financial Life Plan:
A5: Dashboard | D5: Nearing Retirement | G5: Thriving in Retirement | K5: Other
A6: General Planning
A7: Age Based Planning | D7: Nearing retirement checklist | H7: Things to Consider | L7: Retiring to a Different State
A8: Life Events Planning | D8: Rules to Live By | H8: Working during retirement
A9: Niche Planning | D9: Things to Consider | H9: Converting savings to retirement income | L9: Turning concerns into retirement confidence
A10: Professional Circle | D10: Transitioning into retirement | H10: Health Care Costs | L10: Understanding RMD's
A11: GlidePath to Retirement | D11: Evaluating an early retirement offer | H11: Thriving: Things to Consider
A12: Results | D12: Near Retire: Things to Consider
A13: Family Tree
A14: Feedback
A15: Instructions
A16: Release Notes

Sheet LECharitableChange
E2: Charitable Intent Change
A3: =Home!B3 -> 's Plan
A4: Financial Life Plan:
A5: Dashboard | D5: RJ Resources | G5: Brochures | K5: Case Studies
A6: General Planning
A7: Age Based Planning | D7: Benefit from your generosity | H7: Year End Giving Guide 2014 | L7: Charitable giving case study
A8: Life Events Planning | D8: Give and receive. Learn how | H8: Exploring Donor Advised Funds | L8: Donor advised fund case study
A9: Niche Planning | D9: Donate and get a lifetime of income | H9: Exploring Charitable Gift Annuities | L9: Charitable remainder trust case study
A10: Professional Circle | D10: Good deeds get rewarded | H10: Understanding Pooled Income Funds | L10: Concept Emails
A11: GlidePath to Retirement | D11: Income for a lifetime | H11: Considering Charity Advised Accounts | L11: Giving Wisely
A12: Results | D12: Giving is easy. Try it.
A13: Family Tree | D13: Trust Emails
A14: Feedback
A15: Instructions
A16: Release Notes

Sheet FamilyTree
E2: Family Tree
A3: =Home!B3 -> 's Plan
A4: Financial Life Plan: | N4: 99
A5: Dashboard
A6: General Planning
A7: Age Based Planning
A8: Life Events Planning
A9: Niche Planning
A10: Professional Circle
A11: GlidePath to Retirement
A12: Results
A13: Family Tree
A14: Feedback
A15: Instructions
A16: Release Notes

Sheet Instructions
D2: Instructions
A3: =Home!B3 -> 's Plan
A4: Financial Life Plan:
A5: Dashboard
A6: General Planning
A7: Age Based Planning
A8: Life Events Planning
A9: Niche Planning
A10: Professional Circle
A11: GlidePath to Retirement
A12: Results
A13: Family Tree
A14: Feedback
A15: Instructions
A16: Release Notes
C29: =IFERROR(((COUNT(C20:C28)-COUNTIF(E20:E28,"na"))-COUNTIF(C20:C28,3))/((COUNT(C20:C28)-COUNTIF(E20:E28,"na"))),1) -> 1 | G29: =IFERROR(((COUNT(G20:G28)-COUNTIF(I20:I28,"na"))-COUNTIF(G20:G28,3))/((COUNT(G20:G28)-COUNTIF(I20:I28,"na"))),1) -> 1
A52: Gauge
A53: Value | B53: =((C18+G18+C29+G29)/4)*100 -> 50
A54: Pointer | B54: 2
A55: End | B55: =200-SUM(B53:B54) -> 148

Sheet Release Notes
D2: Release Notes
A3: =Home!B3 -> 's Plan
A4: Financial Life Plan:
A5: Dashboard
A6: General Planning
A7: Age Based Planning
A8: Life Events Planning
A9: Niche Planning
A10: Professional Circle
A11: GlidePath to Retirement
A12: Results
A13: Family Tree
A14: Feedback
A15: Instructions
A16: Release Notes
C29: =IFERROR(((COUNT(C20:C28)-COUNTIF(E20:E28,"na"))-COUNTIF(C20:C28,3))/((COUNT(C20:C28)-COUNTIF(E20:E28,"na"))),1) -> 1 | G29: =IFERROR(((COUNT(G20:G28)-COUNTIF(I20:I28,"na"))-COUNTIF(G20:G28,3))/((COUNT(G20:G28)-COUNTIF(I20:I28,"na"))),1) -> 1
A52: Gauge
A53: Value | B53: =((C18+G18+C29+G29)/4)*100 -> 50
A54: Pointer | B54: 2
A55: End | B55: =200-SUM(B53:B54) -> 148
